Cogmind - Beta 9.2 @@@ ROGUE MODE // 2019.11.21 @ 18:25:08 Player: Joshua Result: Heading to fleet! Performance ------------- Evolutions (9) 4500 Regions Visited (36) 7200 Robots Destroyed (379) 1895 Value Destroyed (19594) 19594 Prototype IDs (110) 2200 Alien Tech Used (13) 2600 Bonus (35496) 35496 TOTAL SCORE: 73485 Bonus ------- High Alert Combat Kills 708 Follower Combat Kills 610 Network Hubs Disabled 200 Met Data Miner 300 Met Zhirov 300 Met Warlord at Base 500 MAIN.C Attacked Warlord 500 A7 Reached Mainframe 300 Met R17 at Cetus 500 Found Hidden Lab 3000 Used Core Reset Matrix 3000 Met R17 at Research 2000 Met Warlord at Research 2000 Scanned by Researcher 1000 Pursued by Intercept 1000 Destroyed MAIN.C Guards 500 Met MAIN.C 5000 Destroyed MAIN.C Shell 5000 Destroyed MAIN.C 10000 Met Architect 300 Destroyed A8 300 Destroyed A6 400 Win 3000 Friendly Fire -4922 Cogmind --------- Core Integrity 347/1600 Matter 175/300 Energy 562/900 System Corruption 0% Temperature Cool (4) Movement Treading (155) Ox1 Location To Fleet Rendezvous Parts ------- > --- POWER (2) -------- (None) > --- PROPULSION (4) --- Experimental Biometal Heavy Treads > --- UTILITY (17) ----- High-capacity Storage Unit High-capacity Storage Unit High-capacity Storage Unit High-capacity Storage Unit Advanced Energy Well Enhanced Optical Array Experimental Targeting Computer Experimental Targeting Computer Advanced Target Analyzer Experimental Core Analyzer Advanced Armor Integrity Analyzer Experimental Weapon Cycler > --- WEAPON (3) ------- Hypervelocity Linear Accelerator Hypervelocity Linear Accelerator > --- INVENTORY (36) --- Advanced Coolant Injector Improved Energy Well (600) Matter Compressor (169) Particle Accelerator Quantum Capacitor Matter Drive Vortex Shotgun Vortex Shotgun Sigix Quantum Sheargun Multirail Hypervelocity Linear Accelerator Improved Proton Missile Launcher Guided Remote Datajack Vortex Lance Peak State ------------ > --- POWER ------------ Improved Quantum Reactor Improved Quantum Reactor > --- PROPULSION ------- Biometal Heavy Treads Experimental Biometal Heavy Treads > --- UTILITY ---------- Desublimator High-capacity Storage Unit High-capacity Storage Unit High-capacity Storage Unit High-capacity Storage Unit Advanced Energy Well Enhanced Optical Array Experimental Targeting Computer Advanced Target Analyzer Experimental Core Analyzer Advanced Armor Integrity Analyzer Experimental Phase Shifter Experimental Utility Shielding SHELL Armor Advanced Force Field > --- WEAPON ----------- Sigix Quantum Sheargun Sigix Quantum Sheargun Enhanced Nova Cannon > --- INVENTORY -------- Armored Heavy Treads Advanced Power Amplifier Coolant Network Advanced Coolant Injector Improved Energy Well Matter Compressor Experimental Terrain Scanner Experimental Targeting Computer Particle Accelerator Quantum Capacitor Experimental Core Shielding Experimental Powered Armor Experimental Thermal Shield Advanced Force Field High-powered Transdimensional Reconstructor Matter Drive Vortex Shotgun Vortex Shotgun Long-range Proton Cannon Compact HERF Cannon Compact HERF Cannon Enhanced Nova Cannon Enhanced Nova Cannon Potential Cannon Multirail Improved Proton Missile Launcher Guided Remote Datajack Vortex Lance [Rating: 230] Favorites ----------- Power Quantum Reactor Engine Cooled Deuterium Engine Reactor Quantum Reactor Propulsion Armored Huge Wheel Treads Light Treads Wheel Armored Huge Wheel Hover Unit Cooled Antigrav System Flight Unit Improved VTOL Module Utility High-capacity Storage Unit Device Experimental Sensor Array Storage High-capacity Storage Unit Processor Advanced Targeting Computer Hackware Advanced Hacking Suite Protection Experimental Utility Shielding Weapon Enhanced Nova Cannon Energy Gun Sigix Quantum Sheargun Energy Cannon Enhanced Nova Cannon Ballistic Gun Autogun Ballistic Cannon Battle Cannon Launcher Heavy Missile Launcher Special Weapon Remote Datajack Impact Weapon Powered Hammer Slashing Weapon Makeshift Sword Piercing Weapon Spear Special Melee Weapon Improved Datajack Build | -11 -10 -10 -9 -9 -9 -8 -8 -7 -7 -7 -7 -6 -6 -6 -6 -6 -6 -5 -5 -5 -5 -4 -4 -4 -4 -4 -3 -3 -3 -3 -2 -2 -2 -1 -1 -1 ------- Run | Scr Mat Min Mat Min Exi Min Mat Fac Low Low Dat Pro Fac Ext Cet Arc Hub Fac Upp Upp War Pro Fac Upp Upp Zhi Pro Res Arm Lab Res Tes Sec Acc Com Ac0 Slots Evolved 18 | . . . 2 . . . 2 2 . . . . 2 . . . . 2 . . . . 2 . . . . 2 . . 2 . . 2 . . Power 1 | . . . . . . . . . . . . . . . . . . . . . . . . . . . . 1 . . . . . . . . Propulsion 2 | . . . . . . . . . . . . . 1 . . . . . . . . . . . . . . . . . 1 . . . . . Utility 15 | . . . 2 . . . 2 2 . . . . 1 . . . . 2 . . . . 2 . . . . 1 . . 1 . . 2 . . Weapon . | . . . . . . . . . . . . . . . . . . . . . . . . . . . . . . . . . . . . . Parts Attached 1004 | 6 12 10 15 13 4 . 36 71 12 12 3 13 59 21 24 8 11 30 7 19 4 29 48 15 3 7 2 23 59 9 23 62 81 12 106 135 Power 28 | 1 . . . . . . 3 2 . . . . . . 1 . . 1 . . . . 1 . . . . 2 2 . 2 1 2 . 2 8 Engine 6 | 1 . . . . . . 3 2 . . . . . . . . . . . . . . . . . . . . . . . . . . . . Core . | . . . . . . . . . . . . . . . . . . . . . . . . . . . . . . . . . . . . . Reactor 22 | . . . . . . . . . . . . . . . 1 . . 1 . . . . 1 . . . . 2 2 . 2 1 2 . 2 8 Propulsion 69 | 2 5 1 1 5 . . 11 8 . . . 1 4 . . 1 1 . . . . . 4 . . . . 1 2 . 1 4 3 . 10 4 Treads 24 | . 3 . 1 2 . . 5 3 . . . . . . . . . . . . . . . . . . . . . . . . . . 6 4 Leg . | . . . . . . . . . . . . . . . . . . . . . . . . . . . . . . . . . . . . . Wheel 43 | 2 2 1 . 3 . . 6 4 . . . 1 4 . . 1 1 . . . . . 3 . . . . 1 2 . 1 4 3 . 4 . Hover 1 | . . . . . . . . . . . . . . . . . . . . . . . 1 . . . . . . . . . . . . . Flight 1 | . . . . . . . . 1 . . . . . . . . . . . . . . . . . . . . . . . . . . . . Utility 540 | 1 2 . 7 5 4 . 13 33 7 8 1 8 31 11 6 3 5 18 6 10 2 17 30 11 2 3 1 14 37 4 12 39 50 11 62 66 Device 400 | . . . 1 3 . . 5 20 7 8 1 8 21 10 3 2 4 16 4 9 1 13 25 7 2 2 1 11 32 1 8 33 45 7 40 50 Storage 23 | 1 1 . 3 . 4 . . 1 . . . . . . 1 . . . . . 1 . . 1 . . . . 1 . . 1 2 . 2 4 Processor 20 | . . . . . . . . 2 . . . . 3 . . . . . . . . . . 1 . . . . 1 . . . 1 2 6 4 Hackware 10 | . . . . . . . . . . . . . 3 . . . . 2 . . . . . . . . . 1 1 . 1 . . 2 . . Protection 87 | . 1 . 3 2 . . 8 10 . . . . 4 1 2 1 1 . 2 1 . 4 5 2 . 1 . 2 2 3 3 5 2 . 14 8 Artifact . | . . . . . . . . . . . . . . . . . . . . . . . . . . . . . . . . . . . . . Weapon 367 | 2 5 9 7 3 . . 9 28 5 4 2 4 24 10 17 4 5 11 1 9 2 12 13 4 1 4 1 6 18 5 8 18 26 1 32 57 Energy Gun 20 | 1 . . . . . . . . . . . . . . 1 . . . . . 1 . . . . . . . . 2 . . . . 5 10 Energy Cannon 213 | . . . . . . . 2 11 1 2 . 2 18 8 7 2 4 9 . 8 . 6 10 2 1 3 1 6 14 2 7 14 21 . 19 33 Ballistic Gun 15 | 1 4 . 1 . . . 2 . . . . . . . 1 . 1 . . 1 . . . . . . . . . . . . . . 3 1 Ballistic Cannon 34 | . 1 5 3 2 . . 2 7 . . . . . . . . . . . . . . . . . . . . . . . 1 1 . 1 11 Launcher 43 | . . 4 3 1 . . 2 1 3 1 1 1 3 . 6 2 . . 1 . . 6 1 2 . . . . 3 . . . 1 . . 1 Special Weapon 21 | . . . . . . . . 1 . . 1 1 2 2 1 . . 2 . . 1 . 2 . . 1 . . . . 1 2 2 1 . 1 Impact Weapon 5 | . . . . . . . . 5 . . . . . . . . . . . . . . . . . . . . . . . . . . . . Slashing Weapon 4 | . . . . . . . 1 . 1 1 . . . . 1 . . . . . . . . . . . . . . . . . . . . . Piercing Weapon 11 | . . . . . . . . 2 . . . . 1 . . . . . . . . . . . . . . . 1 1 . 1 1 . 4 . Special Melee Weapon 1 | . . . . . . . . 1 . . . . . . . . . . . . . . . . . . . . . . . . . . . . Unidentified Prototypes 32 | . . . . 1 . . 1 2 . 1 . . . . 3 . . . . . 1 . 1 . . 3 . . 2 4 1 3 . . 4 5 Parts Lost 90 | . 2 . . . . . 7 3 . . . . 1 . . 1 1 2 . 1 . 1 5 . . . . 3 8 . . 5 8 . . 42 Power 13 | . . . . . . . 1 . . . . . . . . . . . . . . . 1 . . . . . 1 . . 2 . . . 8 Propulsion 21 | . 2 . . . . . 2 1 . . . . 1 . . 1 1 . . . . . 1 . . . . 1 2 . . 1 3 . . 5 Utility 31 | . . . . . . . 3 2 . . . . . . . . . 1 . . . . 2 . . . . 2 1 . . . 2 . . 18 Weapon 25 | . . . . . . . 1 . . . . . . . . . . 1 . 1 . 1 1 . . . . . 4 . . 2 3 . . 11 Highest Loss Streak 7 | . 2 . . . . . 3 1 . . . . 1 . . 1 1 2 . 1 . 1 3 . . . . 2 3 . . 2 6 . . 7 Average Slot Usage (%) 91 | . 99 100 95 100 100 100 98 99 100 98 100 100 92 93 93 92 92 93 94 94 94 93 90 90 90 78 90 88 88 81 89 90 86 84 79 80 Engine 3 | . 14 14 11 11 11 11 8 7 7 7 7 7 6 6 . . . . . . . . . . . . . . . . . . . . . . Reactor 3 | . . . . . . . . . . . . . . . 5 6 6 4 5 5 5 5 5 5 5 5 5 7 9 9 8 7 4 3 3 6 Treads 1 | . 6 14 11 6 . . 2 3 . . . . . . . . . . . . . . . . . . . . . . . . . . 2 6 Wheel 10 | . 21 14 11 15 22 22 15 11 15 14 14 14 11 12 12 11 11 11 11 11 11 11 10 10 10 10 10 9 8 9 11 11 11 11 5 . Device 8 | . . . 2 6 11 11 5 6 7 7 7 7 5 5 5 3 6 8 10 10 7 6 8 9 9 7 10 10 10 5 10 11 12 12 12 13 Storage 23 | . 14 14 18 33 33 33 27 28 30 28 28 28 25 25 25 25 25 22 22 22 24 27 25 25 25 25 25 22 22 22 20 20 20 19 17 18 Processor 11 | . . . . . . . . 14 15 14 14 14 12 12 12 12 12 11 11 11 11 11 10 15 15 15 15 11 10 13 12 12 11 14 15 17 Hackware 4 | . . . . . . . . . . . . . 9 6 6 6 6 10 11 11 11 11 10 5 5 5 5 7 6 4 4 4 4 4 . . Protection 7 | . 13 14 18 4 . . 19 8 7 7 7 7 2 6 6 8 6 7 5 5 5 3 6 5 5 7 5 5 6 11 9 8 8 4 7 6 Energy Cannon 10 | . . . . . . . 5 8 7 15 16 15 17 17 8 11 18 15 14 15 13 13 13 14 15 . 15 12 10 2 9 11 11 10 10 5 Ballistic Gun 1 | . 24 14 11 11 11 11 4 . . . . . . . . . . . . . . . . . . . . . . . . . . . . . Ballistic Cannon 1 | . 3 13 10 10 11 11 6 2 . . . . . . . . . . . . . . . . . . . . . . . . . . . 1 Naked Turns . | . . . . . . . . . . . . . . . . . . . . . . . . . . . . . . . . . . . . . Heaviest Build 278 | 12 48 48 72 72 108 108 126 165 165 172 171 172 174 177 181 185 183 197 191 191 213 218 233 248 248 232 233 267 266 256 260 278 273 270 267 263 Greatest Support 165 | 20 40 20 20 40 26 26 40 40 26 26 26 26 40 40 40 40 40 40 40 40 40 40 40 40 40 40 40 40 40 40 50 50 50 48 160 165 Greatest Overweight (x) 12 | . 4 4 7 7 4 4 4 6 6 6 6 7 4 4 4 6 4 4 4 4 5 5 5 6 6 5 5 6 6 6 6 5 9 5 12 2 Average Overweight (x) 4 | . 2 3 5 2 3 4 3 5 5 5 6 6 3 4 3 4 4 4 4 4 4 5 5 5 5 5 5 5 5 5 4 4 5 5 3 1 Largest Inventory Capacity 44 | 6 12 12 22 22 28 28 28 36 36 36 36 36 36 36 36 36 36 36 36 36 44 44 44 44 44 44 44 44 44 44 44 44 44 44 44 36 Average Capacity 36 | 5 11 12 15 22 25 28 28 34 36 36 36 36 36 36 36 36 36 36 36 36 40 44 44 44 44 44 44 44 44 44 44 44 44 44 37 36 Most Carried 44 | 6 12 12 22 22 26 28 28 36 36 36 36 36 36 36 36 36 36 36 36 36 44 44 44 44 44 44 44 44 44 44 44 44 44 44 44 36 Average Carried 35 | 4 10 11 14 21 24 27 27 32 35 35 35 35 35 35 35 35 35 35 35 35 39 43 42 43 43 43 44 41 43 43 43 43 43 43 36 32 Final Capacity 44 | 6 12 12 22 22 28 28 28 36 36 36 36 36 36 36 36 36 36 36 36 36 44 44 44 44 44 44 44 44 44 44 44 44 44 44 36 36 Final Carried 44 | 6 12 12 22 22 26 28 27 36 36 36 36 36 35 36 36 35 34 35 36 36 44 44 44 44 44 44 44 44 42 44 44 44 44 44 36 16 Class Distribution -------------------- 58% | Hauler-Mutant 14% | Hauler-Skirmisher 12% | Alien-Mutant 5% | Mutant Dominant Class ---------------- Mutant | -10/Materials Mutant | -10/Mines Mutant | -9/Materials Hauler-Mutant | -9/Mines Hauler-Mutant | -9/Exiles Hauler-Mutant | -8/Mines Hauler-Mutant | -8/Materials Hauler-Mutant | -7/Factory Hauler-Mutant | -7/Lower Caves Hauler-Mutant | -7/Lower Caves Hauler-Mutant | -7/Data Miner Hauler-Mutant | -6/Proximity Caves Hauler-Mutant | -6/Factory Hauler-Mutant | -6/Extension Hauler-Mutant | -6/Cetus Hauler-Mutant | -6/Archives Hauler-Mutant | -6/Hub_04(d) Hauler-Mutant | -5/Factory Hauler-Mutant | -5/Upper Caves Hauler-Mutant | -5/Upper Caves Hauler-Mutant | -5/Warlord Hauler-Mutant | -4/Proximity Caves Hauler-Mutant | -4/Factory Hauler-Skirmisher | -4/Upper Caves Hauler-Mutant | -4/Upper Caves Hauler-Mutant | -4/Zhirov Hauler-Mutant | -3/Proximity Caves Hauler-Mutant | -3/Research Hauler-Mutant | -3/Armory Hauler-Skirmisher | -3/Lab Hauler-Mutant | -2/Research Hauler-Mutant | -2/Testing Hauler-Mutant | -2/Section 7 Alien-Mutant | -1/Access Alien-Mutant | -1/Command Alien-Gunner | -1/Access_0 Resources | -11 -10 -10 -9 -9 -9 -8 -8 -7 -7 -7 -7 -6 -6 -6 -6 -6 -6 -5 -5 -5 -5 -4 -4 -4 -4 -4 -3 -3 -3 -3 -2 -2 -2 -1 -1 -1 ----------- Run | Scr Mat Min Mat Min Exi Min Mat Fac Low Low Dat Pro Fac Ext Cet Arc Hub Fac Upp Upp War Pro Fac Upp Upp Zhi Pro Res Arm Lab Res Tes Sec Acc Com Ac0 Matter Collected 14584 | 268 682 636 599 204 72 . 697 840 421 178 52 236 726 510 298 109 70 330 110 192 101 327 437 423 63 . 70 515 541 101 370 702 1292 177 1245 990 Remotely . | . . . . . . . . . . . . . . . . . . . . . . . . . . . . . . . . . . . . . Salvage Created 20201 | 77 660 223 703 103 . . 984 614 62 133 . 296 911 363 858 435 374 341 21 414 . 985 1149 165 . . 36 433 1588 . 705 1084 2629 675 896 2284 Parts 886 | . 45 13 38 4 . . 54 30 9 10 . 31 54 17 40 19 16 23 9 12 . 26 36 5 . . 3 10 58 . 22 55 95 25 22 105 Haulers Intercepted 13 | . 2 . 2 . . . 3 . . . . . . . . . . . . . . . 2 . . . . . . . . . 3 1 . . Recyclers Shooed 7 | . 1 . 3 . . . 1 . . . . . . 1 . . . . . . . . 1 . . . . . . . . . . . . . Parts Field Recycled . | . . . . . . . . . . . . . . . . . . . . . . . . . . . . . . . . . . . . . Retrieved Matter . | . . . . . . . . . . . . . . . . . . . . . . . . . . . . . . . . . . . . . Parts Self-Destructed 145 | . . . . . . . . . 7 6 . 20 . . . . . . 7 17 76 6 . 6 . . . . . . . . . . . . Prevented 32 | . . . . . . . . . . . . . . . . . . . . 8 3 13 . 5 . . 3 . . . . . . . . . Kills | -11 -10 -10 -9 -9 -9 -8 -8 -7 -7 -7 -7 -6 -6 -6 -6 -6 -6 -5 -5 -5 -5 -4 -4 -4 -4 -4 -3 -3 -3 -3 -2 -2 -2 -1 -1 -1 ------- Run | Scr Mat Min Mat Min Exi Min Mat Fac Low Low Dat Pro Fac Ext Cet Arc Hub Fac Upp Upp War Pro Fac Upp Upp Zhi Pro Res Arm Lab Res Tes Sec Acc Com Ac0 Combat Hostiles Destroyed 280 | . 13 13 10 5 . . 22 11 7 7 . 13 15 8 9 4 3 6 4 6 . 12 14 2 . . . 3 20 . 5 12 20 6 7 23 Guns 22 | . 12 2 3 2 . . 2 . . . . . . . . . . . . . . . . . . . . . . . . . . . 1 . Cannons 128 | . 1 1 5 . . . 14 7 . 1 . 3 11 8 2 1 3 6 1 6 . 2 10 . . . . 1 11 . 2 8 11 4 4 5 AOE 61 | . . 10 2 3 . . 6 3 7 6 . 10 3 . . . . . 3 . . 4 4 . . . . . . . . . . . . . Classes Destroyed 24 | 1 5 3 2 . . . 2 2 . . . . 1 . . . . . . . . 2 . . . . . . 1 . 2 1 1 . . 1 Worker 11 | . . 1 . . . . . 3 . . . . 3 . . . . . . . . . 1 . . . . 1 . . 1 1 . . . . Builder 12 | . 1 . . . . . . . . . . . . . . . 1 . . . . . 3 . . . . . . . . 1 6 . . . Tunneler 1 | . . 1 . . . . . . . . . . . . . . . . . . . . . . . . . . . . . . . . . . Hauler 13 | . 2 . 2 . . . 3 . . . . . . . . . . . . . . . 2 . . . . . . . . . 3 1 . . Recycler 14 | 1 2 1 3 . . . 1 1 . . . . . . . . 1 . . . . . . . . . . . . . 1 . 3 . . . Minesweeper 3 | . . . . . . . . . . . . . . . . . . . . . . 2 . . . . 1 . . . . . . . . . Mechanic 1 | . . . . . . . . . . . . . 1 . . . . . . . . . . . . . . . . . . . . . . . Operator 5 | . . . . . . . . 2 . . . . 1 . . . . . . . . . . . . . . 1 1 . . . . . . . Drone 4 | . . . . . . . . . . . . . . . . . . . . . . . . . . . . . . . . . . . . 4 Watcher 27 | . 2 . 2 . . . . 1 . . . . 1 1 2 . 1 1 . . . . 2 . . . . 3 3 . 2 1 2 3 . . Swarmer 52 | . 6 6 . 3 . . 2 . 7 6 . 10 2 4 . . . . 4 . . . . . . . . . . . . . 2 . . . Saboteur 2 | . . . . . . . . . . . . . . . . . . . . . . . . . . . . . 2 . . . . . . . Grunt 76 | . 7 4 7 2 . . 12 5 . . . . 5 1 1 . 3 2 . 3 . 11 3 2 . . . 1 2 . . . 3 1 1 . Brawler 6 | . . . . . . . 1 . . . . . . . 1 . . . . 1 . . . . . . . . 3 . . . . . . . Duelist 9 | . . . 1 . . . 2 . . . . . . . . . . . . . . . 1 . . . . 1 4 . . . . . . . Protector 1 | . . . . . . . . . . . . . . . . . . . . . . 1 . . . . . . . . . . . . . . Researcher 2 | . . . . . . . . . . . . . . . . . . . . . . . . . . . . . . . . 1 1 . . . Sentry 30 | . . . 4 . . . 4 2 . . . 1 3 2 . 4 . . . . . . 5 . . . . 1 2 . 1 . . 1 . . Demolisher 1 | . . . . . . . . . . . . . . . . . . . . . . . . . . . . . . . 1 . . . . . Hunter 22 | . . . . . . . 1 . . . . 2 . . . . . . . 2 . . 1 . . . . . 3 . 2 4 5 . 2 . Programmer 42 | . . . . . . . . 4 . 1 . . 5 1 . . . 4 . . . 1 4 . . . . . 4 . . 8 6 2 2 . Cetus Guard 7 | . . . . . . . . . . . . . . . 7 . . . . . . . . . . . . . . . . . . . . . S7 Guard 2 | . . . . . . . . . . . . . . . . . . . . . . . . . . . . . . . . . 2 . . . Enhanced Grunt 14 | . . . . . . . . . . . . . . . . . . . . . . . . . . . . . . . . . . . . 14 Enhanced Sentry 1 | . . . . . . . . . . . . . . . . . . . . . . . . . . . . . . . . . . . . 1 Enhanced Hunter 6 | . . . . . . . . . . . . . . . . . . . . . . . . . . . . . . . . . . . . 6 Tracker 2 | . . . . . . . . . . . . . . . . . . . . . . . . . . . . . . . . . . 2 . . Striker 1 | . . . . . . . . . . . . . . . . . . . . . . . . . . . . . . . 1 . . . . . Executioner 2 | . . . . . . . . . . . . . . . . . . . . . . . . . . . . . . . . . 2 . . . Assembled 4 | . . 3 . . . . . . . . . . . . . . . . . . . . . . . . . . . . . . . . . 1 Savage 1 | . . . . . . . . . . . . . . . . 1 . . . . . . . . . . . . . . . . . . . . Best Kill Streak 10 | 1 3 5 4 3 . . 5 6 7 3 . 10 3 2 5 2 2 2 4 4 . 4 6 2 . . 1 2 9 . 4 3 5 4 4 4 Combat Bots Only 10 | . 3 4 3 3 . . 5 5 7 3 . 10 3 2 4 2 2 2 4 4 . 4 5 2 . . . 1 8 . 4 3 3 2 4 4 Max Kills in Single Turn 4 | 1 2 3 2 1 . . 2 4 3 3 . 2 3 1 2 1 2 1 2 1 . 2 2 1 . . 1 1 1 . 1 1 1 1 1 3 Gunslinging . | . . . . . . . . . . . . . . . . . . . . . . . . . . . . . . . . . . . . . Exploded 3 | . . 3 1 1 . . 2 3 3 3 . 2 2 . . . . . 2 . . 1 2 . . . . . . . . . . . . . Melee . | . . . . . . . . . . . . . . . . . . . . . . . . . . . . . . . . . . . . . Uniques/NPCs Destroyed 4 | . . . . . . . . . . . . . . . 1 . . . . . . . . . . . . . . . . . . . 1 2 A7 (-6/Cetus) MAIN.C Shell (-1/Command) MAIN.C (-1/Command) A8 (-1/Access_0) A6 (-1/Access_0) Combat | -11 -10 -10 -9 -9 -9 -8 -8 -7 -7 -7 -7 -6 -6 -6 -6 -6 -6 -5 -5 -5 -5 -4 -4 -4 -4 -4 -3 -3 -3 -3 -2 -2 -2 -1 -1 -1 -------- Run | Scr Mat Min Mat Min Exi Min Mat Fac Low Low Dat Pro Fac Ext Cet Arc Hub Fac Upp Upp War Pro Fac Upp Upp Zhi Pro Res Arm Lab Res Tes Sec Acc Com Ac0 Damage Taken 34153 | . 489 251 294 112 . . 1580 640 27 73 . 205 685 164 194 371 478 208 46 489 9 461 1596 78 . . . 1000 1851 . 567 972 3161 427 2455 15270 Core 2762 | . 65 2 51 . . . 110 66 12 35 . 24 51 25 34 . 89 . . 105 . 60 61 . . . . 118 126 . 67 57 246 31 260 1067 Absorbed by Shields 10188 | . . . . . . . . 8 6 6 . 43 26 43 88 . . 21 18 95 9 94 262 . . . . 499 400 . 39 439 1079 431 1505 5077 Reduced by Siege Mode 384 | . . . . . . . . . . . . . . . . . . . . . . . . . . . . . . . . . . . 43 341 Core Remaining (%) 74 | 100 . 73 . . . 87 80 . . . . 80 . . . . 76 . . . . 83 . . . . 94 . . 75 . . 46 . . 21 Volleys Fired 1401 | 8 60 49 47 7 . 1 70 44 5 5 1 12 77 28 20 13 16 40 16 23 10 30 78 6 15 3 9 34 62 3 31 79 122 47 102 228 Largest 3 | 2 2 2 2 2 . 2 2 2 1 3 1 3 3 3 3 3 3 3 2 3 1 3 3 3 2 1 2 3 3 1 2 3 3 1 1 3 Hottest 360 | 70 58 62 62 62 . 62 120 130 39 195 30 195 270 245 245 183 245 270 180 255 90 234 270 215 215 40 169 279 335 120 169 328 241 120 120 360 Shots Fired 2320 | 16 120 72 81 11 . 2 128 80 5 11 1 20 114 68 36 26 30 65 17 47 10 61 154 13 15 3 11 62 110 3 47 118 211 47 102 403 Gun 348 | 16 115 23 34 4 . 1 31 . . . . . . . . . . . . . . . . . . . . . . . . . . . 25 99 Cannon 1812 | . 5 34 38 4 . 1 91 79 . 9 . 12 103 61 15 21 30 63 14 47 2 54 146 9 15 . 11 62 104 3 42 113 209 46 76 293 Launcher 100 | . . 15 9 3 . . 6 . 5 2 . 7 5 . 10 5 . . 3 . . 7 3 4 . . . . 6 . . . . . . 10 Special 60 | . . . . . . . . 1 . . 1 1 6 7 11 . . 2 . . 8 . 5 . . 3 . . . . 5 5 2 1 1 1 Kinetic 443 | 8 120 57 72 8 . 2 89 24 . . . . . . . . . . . . . . . . . . . . . . . . 4 . . 59 Thermal 1061 | 8 . . . . . . 33 51 . 9 . 12 79 57 26 . 25 57 14 30 2 29 133 6 15 . 9 6 39 3 9 81 95 25 64 144 Explosive 51 | . . 15 9 3 . . 6 . 5 2 . 7 1 . . . . . 3 . . . . . . . . . . . . . . . . . Electromagnetic 598 | . . . . . . . . 4 . . . . 28 4 10 26 5 6 . 17 . 32 16 7 . . 2 56 71 . 33 32 110 21 12 106 Slashing 105 | . . . . . . . . . . . . . . . . . . . . . . . . . . . . . . . . . . . 12 93 Entropic 13 | . . . . . . . . . . . . . . . . . . . . . . . . . . . . . . . . . . . 13 . Robot Hit Streak 48 | 5 10 6 10 8 . 10 18 20 4 8 9 12 13 29 39 9 6 7 9 19 5 14 23 3 . 6 7 6 21 . 29 9 20 19 40 48 Robot Miss Streak 7 | 2 3 3 4 3 . . 7 2 1 . . 2 3 5 2 2 2 3 . 3 1 3 4 2 . . 1 3 3 . 1 3 3 2 1 4 Penetration Max . | . . . . . . . . . . . . . . . . . . . . . . . . . . . . . . . . . . . . . Secondary Targets 1 | . 1 . . . . . . . . . . . . . . . . . . . . . . . . . . . . . . . . . . . Max Gunslinging Chain 1 | . 1 . . . . . . . . . . . . . . . . . . . . . . . . . . . . . . . . . . . Capacitor 234 | . . . . . . . . . . . . . . . . . . . . . . . . . . . . . . . . . . 45 96 93 Shots Hit Robots 1422 | 11 70 21 40 8 . 2 92 57 2 8 1 13 56 38 27 18 17 21 2 30 7 35 105 5 . 3 1 35 71 . 26 41 122 31 83 323 Core Hits 696 | 2 25 27 27 6 . . 51 22 7 7 . 17 30 10 22 7 9 11 7 13 . 21 50 1 . . 2 13 35 . 10 15 37 12 41 159 Critical Hits 83 | . . . . . . . 2 2 . . . . 1 1 1 . . . . 1 . . 3 . . . . . 3 . 2 3 5 . . 59 Critical Kills 10 | . . . . . . . . . . . . . 1 . . . . . . . . . 1 . . . . . 2 . 2 . 2 . . 2 Critical Parts Destroyed 40 | . . . . . . . 2 1 . . . . . 1 1 . . . . . . . 2 . . . . . 1 . . 3 2 . . 27 Melee Attacks 97 | . . . . . . . 4 55 15 1 . . . . 6 . . . . . . . . . . . . . . . . 1 . . 15 . Impact 50 | . . . . . . . . 50 . . . . . . . . . . . . . . . . . . . . . . . . . . . . Slashing 26 | . . . . . . . 4 . 15 1 . . . . 6 . . . . . . . . . . . . . . . . . . . . . Piercing 14 | . . . . . . . . 4 . . . . . . . . . . . . . . . . . . . . . . . . . . 10 . Entropic 6 | . . . . . . . . . . . . . . . . . . . . . . . . . . . . . . . . 1 . . 5 . Sneak Attacks 9 | . . . . . . . . 3 . . . . . . 6 . . . . . . . . . . . . . . . . . . . . . Combat Hostiles . | . . . . . . . . . . . . . . . . . . . . . . . . . . . . . . . . . . . . . Follow-up Attacks . | . . . . . . . . . . . . . . . . . . . . . . . . . . . . . . . . . . . . . Damage Inflicted 61382 | 95 997 973 951 336 . 39 2189 2047 640 581 . 995 2206 889 1851 651 733 771 214 1015 . 2486 4860 251 . . 62 1615 2949 . 927 1833 4910 1469 4535 17312 Guns 5659 | 95 946 155 353 43 . 17 392 . . . . . . . . . . . . . . . . . . . . . . . . . . . 1511 2147 Cannons 40549 | . 51 89 343 22 . 22 1236 1245 . 231 . 189 1547 876 393 431 496 759 35 940 . 971 3639 77 . . 62 1442 2611 . 927 1833 4829 1469 3024 10760 Explosions 14401 | . . 729 255 271 . . 561 675 640 350 . 806 659 . 825 220 237 12 179 75 . 1515 1221 174 . . . 173 338 . . . 81 . . 4405 Melee 660 | . . . . . . . . 127 . . . . . . 533 . . . . . . . . . . . . . . . . . . . . . Ramming 13 | . . . . . . . . . . . . . . 13 . . . . . . . . . . . . . . . . . . . . . . Kinetic 4857 | 57 997 244 696 65 . 39 1174 431 . . . . . . . . . . . . . . . . . . . . . . . . 43 . . 1111 Thermal 30475 | 38 . . . . . . 454 1393 . 231 . 189 1116 730 493 60 368 655 35 637 . 917 3387 37 . . . 216 971 . . 1247 1950 699 2651 12001 Explosive 4895 | . . 729 255 271 . . 561 . 640 350 . 806 225 . . . . . 179 . . . 879 . . . . . . . . . . . . . Electromagnetic 17008 | . . . . . . . . 96 . . . . 865 146 825 591 365 116 . 378 . 1569 594 214 . . 62 1399 1978 . 927 586 2917 770 373 2237 Impact 127 | . . . . . . . . 127 . . . . . . . . . . . . . . . . . . . . . . . . . . . . Slashing 2715 | . . . . . . . . . . . . . . . 533 . . . . . . . . . . . . . . . . . . . 219 1963 Piercing . | . . . . . . . . . . . . . . . . . . . . . . . . . . . . . . . . . . . . . Entropic 1292 | . . . . . . . . . . . . . . . . . . . . . . . . . . . . . . . . . . . 1292 . Highest Corruption 15 | . . . . . . . 4 2 2 3 3 3 2 2 2 2 4 1 1 1 2 2 6 6 6 6 6 . 5 5 . 13 15 . . . Average Corruption 3 | . . . . . . . 4 1 2 2 3 3 1 2 2 2 2 1 1 1 1 1 4 6 6 6 6 . 1 5 . 8 14 . . . Corruption Purged . | . . . . . . . . . . . . . . . . . . . . . . . . . . . . . . . . . . . . . Effects 387 | . . . . . . . 21 15 10 8 2 17 8 11 3 . 5 6 2 4 2 7 26 25 13 7 15 . 6 5 . 51 118 . . . Message Errors 93 | . . . . . . . 5 6 5 4 1 3 3 1 . . 1 3 1 1 1 1 7 6 6 2 5 . 1 1 . 9 20 . . . Matter Fused 55 | . . . . . . . 1 . . 1 1 5 . . . . . . . . . . 4 7 4 3 3 . 1 1 . 5 19 . . . Heat Flow Errors 33 | . . . . . . . 2 2 1 . . 2 2 3 1 . . . . . . 1 3 3 2 . 3 . . 2 . 3 3 . . . Energy Discharges 47 | . . . . . . . . 4 . 2 . 5 1 2 . . 1 . . 2 1 4 2 2 . 1 . . 4 1 . 5 10 . . . Parts Rejected 2 | . . . . . . . . . . . . . . . . . . . . . . . . . . . . . . . . 1 1 . . . Data Loss (minor) 45 | . . . . . . . 6 2 4 1 . 2 1 4 1 . 1 2 1 . . 1 2 4 . 1 1 . . . . 6 5 . . . Data Loss (major) 11 | . . . . . . . . . . . . . . . . . . . . . . . 1 . . . 1 . . . . 4 5 . . . Misfires 10 | . . . . . . . . . . . . . . . . . . . . . . . . 2 . . 1 . . . . 2 5 . . . Alerts 3 | . . . . . . . . . . . . . . . . . . . . . . . . . . . . . . . . 1 2 . . . Misdirections 13 | . . . . . . . . . . . . . . . . . . . . . . . . . . . . . . . . 1 12 . . . Targeting Errors 65 | . . . . . . . 4 1 . . . . 1 1 1 . 2 1 . 1 . . 7 1 . . 1 . . . . 12 32 . . . Weapon Failures 10 | . . . . . . . 3 . . . . . . . . . . . . . . . . . 1 . . . . . . 2 4 . . . Overload Shots . | . . . . . . . . . . . . . . . . . . . . . . . . . . . . . . . . . . . . . Overflow Damage 2632 | . . 25 . 9 . . 29 112 41 43 . 27 125 89 17 . 16 15 . 17 . 247 329 . . . . 132 146 . 12 116 202 109 55 719 Projectiles 1611 | . . . . . . . 26 3 . 43 . . 103 89 16 . 15 15 . 17 . 65 129 . . . . 114 146 . 12 116 202 109 55 336 Explosions 949 | . . 25 . 9 . . 3 37 41 . . 27 22 . 1 . 1 . . . . 182 200 . . . . 18 . . . . . . . 383 Melee 72 | . . . . . . . . 72 . . . . . . . . . . . . . . . . . . . . . . . . . . . . Knockbacks 24 | . . 1 4 . . 1 7 2 . . . . . . . . . . . . . . . . . . . . . . . . . . . 9 Impact 2 | . . . . . . . . 2 . . . . . . . . . . . . . . . . . . . . . . . . . . . . Kinetic 21 | . . 1 4 . . 1 6 . . . . . . . . . . . . . . . . . . . . . . . . . . . . 9 Secondary 1 | . . . . . . . 1 . . . . . . . . . . . . . . . . . . . . . . . . . . . . . Self-Inflicted Damage 514 | . . 7 40 . . . 89 . . . . . 84 6 14 11 97 . . . . 31 75 . . . . . . . . . 25 . . 35 Shots 16 | . . 1 2 . . . 4 . . . . . 2 . 1 1 1 . . . . 1 1 . . . . . . . . . 1 . . 1 Rammed 1 | . . . . . . . . . . . . . . 1 . . . . . . . . . . . . . . . . . . . . . . Targets Rammed 1 | . . . . . . . . . . . . . . 1 . . . . . . . . . . . . . . . . . . . . . . Kicked . | . . . . . . . . . . . . . . . . . . . . . . . . . . . . . . . . . . . . . Crushed . | . . . . . . . . . . . . . . . . . . . . . . . . . . . . . . . . . . . . . Highest Temperature 540 | 90 163 162 147 36 . . 318 317 230 81 1 295 350 409 331 438 540 388 280 352 65 318 405 288 202 51 131 428 406 201 239 516 216 . 5 70 Average Temperature 86 | 35 40 49 45 19 . . 81 86 128 43 1 114 65 133 156 159 170 90 111 142 31 97 110 95 92 27 30 96 110 82 68 110 47 . 5 34 Received Heat Transfer 3218 | . 177 32 114 48 . . 603 120 . 9 . 22 201 9 13 72 198 90 . 90 4 96 168 18 . . . 86 116 . 8 30 142 4 125 623 Effects 23 | . . . . . . . . . . . . . . 1 . 1 4 . 2 . . . 2 . . . . 1 7 . . 5 . . . . Shutdowns 5 | . . . . . . . . . . . . . . . . . . . . . . . 1 . . . . 1 1 . . 2 . . . . Energy Bleed 3 | . . . . . . . . . . . . . . 1 . . . . . . . . . . . . . . 2 . . . . . . . Interference 11 | . . . . . . . . . . . . . . . . . 3 . 2 . . . . . . . . . 4 . . 2 . . . . Damage (minor) 3 | . . . . . . . . . . . . . . . . 1 . . . . . . 1 . . . . . . . . 1 . . . . Damage (major) 1 | . . . . . . . . . . . . . . . . . 1 . . . . . . . . . . . . . . . . . . . Siege Activations 15 | . . . . . . . . . . . . . . . . . . . . . . . . . . . . . . . . . . . 2 13 Total Turns 1713 | . . . . . . . . . . . . . . . . . . . . . . . . . . . . . . . . . . . 1485 228 Longest Duration 1441 | . . . . . . . . . . . . . . . . . . . . . . . . . . . . . . . . . . . 1441 48 Robots Corrupted 77 | . . . . . . . . . . . . . 1 . 7 3 . . . . . 7 . 2 . . . 2 9 . 4 4 13 5 2 18 Combat Hostiles 67 | . . . . . . . . . . . . . 1 . 7 3 . . . . . 6 . 2 . . . 2 9 . 3 3 9 2 2 18 Parts Fried 226 | . . . . . . . . 3 . . . . 7 2 8 5 2 2 . 3 . 17 5 6 . . 1 11 22 . 11 6 42 10 4 59 Impact Corruptions 3 | . . . . . . . . 3 . . . . . . . . . . . . . . . . . . . . . . . . . . . . Robots Melted 3 | . . . . . . . . 1 . . . . . . . . . . . . . . 1 . . . . . . . . 1 . . . . Combat Hostiles 2 | . . . . . . . . 1 . . . . . . . . . . . . . . . . . . . . . . . 1 . . . . Parts Melted 58 | . . . . . . . . 4 . 1 . 2 6 2 2 . 3 . . 2 . . 11 . . . . . 3 . . 5 12 3 2 . Heat Transferred 20636 | 111 . . . . . . 962 1571 . 259 . 259 1301 938 699 50 509 558 50 807 . 720 3123 37 . . . 175 692 . . 925 1419 555 765 4151 Parts Sabotaged . | . . . . . . . . . . . . . . . . . . . . . . . . . . . . . . . . . . . . . Parts Stolen . | . . . . . . . . . . . . . . . . . . . . . . . . . . . . . . . . . . . . . Parts Stripped . | . . . . . . . . . . . . . . . . . . . . . . . . . . . . . . . . . . . . . Power Chain Reactions 9 | . . . . . . . . . . . . . 1 . . 1 . . . 1 . 2 1 . . . . 1 . . . . 1 . . 1 Missiles Intercepted . | . . . . . . . . . . . . . . . . . . . . . . . . . . . . . . . . . . . . . Alert | -11 -10 -10 -9 -9 -9 -8 -8 -7 -7 -7 -7 -6 -6 -6 -6 -6 -6 -5 -5 -5 -5 -4 -4 -4 -4 -4 -3 -3 -3 -3 -2 -2 -2 -1 -1 -1 ------- Run | Scr Mat Min Mat Min Exi Min Mat Fac Low Low Dat Pro Fac Ext Cet Arc Hub Fac Upp Upp War Pro Fac Upp Upp Zhi Pro Res Arm Lab Res Tes Sec Acc Com Ac0 Peak Influence 696 | 5 322 227 257 175 . . 365 391 . . . . 247 137 374 264 396 225 . . . . 696 . . . . 117 407 . 153 288 391 245 270 . Average Influence 126 | . 191 119 161 79 . . 116 143 . . . . 97 56 253 223 144 79 . . . . 304 . . . . 43 226 . 24 116 110 101 174 . Maximum Alert Level 2 | . 1 1 1 . . . 1 1 . . . . 1 . 1 1 1 1 . . . . 2 . . . . . 2 . . 1 1 1 1 . Low Security (%) 1 | 100 46 59 48 100 . 100 84 77 . . . . 91 100 36 30 76 91 . . . . 34 . . . . 100 41 . 100 98 76 96 . . Level 1 98 | . 53 40 51 . . . 15 22 . . . . 8 . 63 69 23 8 . . . . 36 . . . . . 57 . . 1 23 3 99 . Level 2 . | . . . . . . . . . . . . . . . . . . . . . . . 29 . . . . . 1 . . . . . . . Level 3 . | . . . . . . . . . . . . . . . . . . . . . . . . . . . . . . . . . . . . . Level 4 . | . . . . . . . . . . . . . . . . . . . . . . . . . . . . . . . . . . . . . Level 5 . | . . . . . . . . . . . . . . . . . . . . . . . . . . . . . . . . . . . . . High Security . | . . . . . . . . . . . . . . . . . . . . . . . . . . . . . . . . . . . . . Max Security . | . . . . . . . . . . . . . . . . . . . . . . . . . . . . . . . . . . . . . Squads Dispatched 69 | . 1 . . . . . 3 7 . . . . 12 1 . . 1 2 . . . . 5 . . . . 9 5 . 3 5 9 5 1 . Investigation 19 | . 1 . . . . . 1 3 . . . . 3 1 . . 1 . . . . . 1 . . . . 6 2 . . . . . . . Extermination 24 | . . . . . . . . 3 . . . . 6 . . . . 2 . . . . 3 . . . . . 3 . . 3 3 1 . . Reinforcement 19 | . . . . . . . 2 1 . . . . 3 . . . . . . . . . 1 . . . . 3 . . 3 2 3 1 . . Assault 1 | . . . . . . . . . . . . . . . . . . . . . . . . . . . . . . . . . . . 1 . Garrison . | . . . . . . . . . . . . . . . . . . . . . . . . . . . . . . . . . . . . . Intercept 6 | . . . . . . . . . . . . . . . . . . . . . . . . . . . . . . . . . 3 3 . . Construction Impeded 3 | . . . . . . . 1 . . . . . 1 . . . . . . . . . 1 . . . . . . . . . . . . . Haulers Reinforced 4 | . . . . . . . . . . . . . . . . . . . . . . . . . . . . 1 . . 1 . 1 1 . . Stealth | -11 -10 -10 -9 -9 -9 -8 -8 -7 -7 -7 -7 -6 -6 -6 -6 -6 -6 -5 -5 -5 -5 -4 -4 -4 -4 -4 -3 -3 -3 -3 -2 -2 -2 -1 -1 -1 --------- Run | Scr Mat Min Mat Min Exi Min Mat Fac Low Low Dat Pro Fac Ext Cet Arc Hub Fac Upp Upp War Pro Fac Upp Upp Zhi Pro Res Arm Lab Res Tes Sec Acc Com Ac0 Distress Signals 63 | . . 1 3 . . . 3 1 . . . . . 1 2 1 . 2 . . . . 2 . . . . 8 . . 12 1 . . 26 . Communications Jammed 28 | . . . . . . . . . . . . . . . . . . . . . . . 5 . . . . 2 9 . . . 12 . . . Distress Signals 27 | . . . . . . . . . . . . . . . . . . . . . . . 5 . . . . 2 9 . . . 11 . . . Times Spotted 467 | . 20 11 18 5 . . 31 14 6 4 . 11 25 15 16 8 9 9 2 6 21 14 26 5 . . . 24 29 . 11 19 32 10 14 52 Peak Tracking Total 13 | . 4 3 6 3 . . 9 2 3 3 . 4 3 5 5 1 3 2 2 4 11 4 6 3 . . . 3 5 . 2 4 5 4 13 7 Tactical Retreats 22 | . . 2 1 . . . 1 1 . . . . . 2 1 . . . . . . 2 . 1 . . . . 4 . . 1 3 . 3 . Traps | -11 -10 -10 -9 -9 -9 -8 -8 -7 -7 -7 -7 -6 -6 -6 -6 -6 -6 -5 -5 -5 -5 -4 -4 -4 -4 -4 -3 -3 -3 -3 -2 -2 -2 -1 -1 -1 ------- Run | Scr Mat Min Mat Min Exi Min Mat Fac Low Low Dat Pro Fac Ext Cet Arc Hub Fac Upp Upp War Pro Fac Upp Upp Zhi Pro Res Arm Lab Res Tes Sec Acc Com Ac0 Traps Triggered 32 | . 1 . . . . . . 4 . . . . . 3 . . . 1 . . . 1 . . . . . 2 1 . . 1 . 1 17 . Indirectly 1 | . . . . . . . . . . . . . . . . . . . . . . 1 . . . . . . . . . . . . . . Trap Hack Attempts . | . . . . . . . . . . . . . . . . . . . . . . . . . . . . . . . . . . . . . Triggered . | . . . . . . . . . . . . . . . . . . . . . . . . . . . . . . . . . . . . . Disarmed . | . . . . . . . . . . . . . . . . . . . . . . . . . . . . . . . . . . . . . Reprogrammed 4 | . . . . . . . . . . . . . . . . . . 4 . . . . . . . . . . . . . . . . . . Reused 2 | . . . . . . . . . . . . . . . . . . . . . . 2 . . . . . . . . . . . . . . Traps Extracted . | . . . . . . . . . . . . . . . . . . . . . . . . . . . . . . . . . . . . . Installed 20 | . . . . . . . . . . . . . . . . . . . . . . 15 . . . . 5 . . . . . . . . . Triggered 7 | . . . . . . . . . . . . . 1 . . . . . . . 4 2 . . . . . . . . . . . . . . Machines | -11 -10 -10 -9 -9 -9 -8 -8 -7 -7 -7 -7 -6 -6 -6 -6 -6 -6 -5 -5 -5 -5 -4 -4 -4 -4 -4 -3 -3 -3 -3 -2 -2 -2 -1 -1 -1 ---------- Run | Scr Mat Min Mat Min Exi Min Mat Fac Low Low Dat Pro Fac Ext Cet Arc Hub Fac Upp Upp War Pro Fac Upp Upp Zhi Pro Res Arm Lab Res Tes Sec Acc Com Ac0 Machines Disabled 87 | . 3 1 3 2 . . 4 7 . . . . 2 . 1 2 7 6 . . . . 9 1 . . . . 6 1 . 10 14 . 2 6 Max in Single Turn 6 | . 1 1 1 1 . . 1 3 . . . . 1 . . 1 5 4 . . . . 6 1 . . . . 2 1 . 1 1 . 1 1 Garrison Access 10 | . . . . . . . . 1 . . . . 3 . . . . 2 . . . . . . . . . 1 . . 2 1 . . . . Network Hub 1 | . . . . . . . . . . . . . . . . . 1 . . . . . . . . . . . . . . . . . . . Machines Sabotaged . | . . . . . . . . . . . . . . . . . . . . . . . . . . . . . . . . . . . . . Garrisons Compromised . | . . . . . . . . . . . . . . . . . . . . . . . . . . . . . . . . . . . . . Overloaded Fab Kills . | . . . . . . . . . . . . . . . . . . . . . . . . . . . . . . . . . . . . . Fab Network Shutdowns 1 | . . . . . . . . . . . . . . . . . . . . . . . 1 . . . . . . . . . . . . . Hacking | -11 -10 -10 -9 -9 -9 -8 -8 -7 -7 -7 -7 -6 -6 -6 -6 -6 -6 -5 -5 -5 -5 -4 -4 -4 -4 -4 -3 -3 -3 -3 -2 -2 -2 -1 -1 -1 --------- Run | Scr Mat Min Mat Min Exi Min Mat Fac Low Low Dat Pro Fac Ext Cet Arc Hub Fac Upp Upp War Pro Fac Upp Upp Zhi Pro Res Arm Lab Res Tes Sec Acc Com Ac0 Machines Accessed 155 | . 8 . 2 . 1 . 7 18 1 . 4 1 23 16 3 . 1 15 . 2 4 . 6 1 1 5 . 5 8 2 . 9 7 4 1 . Terminals 97 | . 7 . 2 . . . 6 10 . . . 1 13 15 3 . 1 8 . . . . 4 . . . . 4 5 . . 6 7 4 1 . Fabricators 11 | . . . . . . . . 4 . . . . 1 . . . . 2 . . . . 1 . . . . . 3 . . . . . . . Repair Stations 7 | . . . . . . . . 1 . . . . 2 1 . . . 2 . . . . . . . . . . . . . 1 . . . . Recycling Units 8 | . 1 . . . . . . 2 . . . . 3 . . . . 1 . . . . 1 . . . . . . . . . . . . . Scanalyzers 3 | . . . . . . . 1 . . . . . 1 . . . . . . . . . . . . . . . . . . 1 . . . . Garrison Access 8 | . . . . . . . . 1 . . . . 3 . . . . 2 . . . . . . . . . 1 . . . 1 . . . . Total Hacks 586 | . 28 . 11 . 23 . 25 44 1 . 28 2 65 50 5 . 2 64 . 5 7 . 27 1 1 18 . 13 36 20 . 31 39 36 4 . Successful 392 | . 17 . 9 . 23 . 13 17 1 . 28 . 45 36 5 . . 42 . 5 7 . 18 1 1 18 . 5 24 20 . 21 24 10 2 . Failed 192 | . 11 . 2 . . . 12 27 . . . 2 19 14 . . 2 22 . . . . 9 . . . . 8 11 . . 10 15 26 2 . Catastrophic 33 | . . . . . . . 1 6 . . . . 5 2 . . . 2 . . . . . . . . . 3 1 . . 2 2 9 . . Database Lockouts 2 | . . . . . . . . . . . . . 1 . . . . . . . . . . . . . . . 1 . . . . . . . Manual 292 | . 19 . 8 . . . 15 26 . . . 2 24 41 4 . 1 24 . . 1 . 8 . . . . 7 18 6 . 18 33 34 3 . Terminals 373 | . 27 . 11 . . . 21 31 . . . 2 38 46 5 . 2 39 . . . . 15 . . . . 12 25 . . 20 39 36 4 . Fabricators 40 | . . . . . . . . 6 . . . . 3 . . . . 9 . . . . 11 . . . . . 11 . . . . . . . Repair Stations 29 | . . . . . . . . 2 . . . . 6 4 . . . 11 . . . . . . . . . . . . . 6 . . . . Recycling Units 11 | . 1 . . . . . . 3 . . . . 4 . . . . 2 . . . . 1 . . . . . . . . . . . . . Scanalyzers 18 | . . . . . . . 4 . . . . . 10 . . . . . . . . . . . . . . . . . . 4 . . . . Garrison Access 11 | . . . . . . . . 2 . . . . 4 . . . . 3 . . . . . . . . . 1 . . . 1 . . . . Terminal Hacks 212 | . 8 . 4 . 23 . 5 7 1 . 28 . 15 12 1 . . 19 . 5 7 . 7 1 1 18 . 2 8 20 . 4 9 6 1 . Record 71 | . . . . . 23 . . . . . 11 . . . . . . . . 4 6 . . 1 . 6 . . . 20 . . . . . . Part Schematic 27 | . 1 . . . . . 1 2 . . 8 . 1 3 . . . 7 . . . . . . . 4 . . . . . . . . . . Robot Schematic 6 | . . . . . . . . . . . 6 . . . . . . . . . . . . . . . . . . . . . . . . . Robot Analysis 8 | . 1 . . . . . . . . . . . . . . . . . . . . . . . . 4 . . . . . . . 3 . . Prototype ID Bank 17 | . 3 . . . . . . . . . 3 . . 1 . . . 2 . . . . 1 . . 4 . . 2 . . 1 . . . . Open Door 10 | . . . . . . . . . 1 . . . . . 1 . . . . 1 1 . . . 1 . . . 1 . . . 3 . 1 . Level Access Points 1 | . . . . . . . . . . . . . . . . . . . . . . . . . . . . . . . . . 1 . . . Branch Access Points 4 | . . . 1 . . . . 1 . . . . . . . . . . . . . . 1 . . . . 1 . . . . . . . . Emergency Access Points 2 | . . . 1 . . . . . . . . . 1 . . . . . . . . . . . . . . . . . . . . . . . Machine Index 1 | . . . . . . . . . . . . . . . . . . . . . . . . . . . . . 1 . . . . . . . Terminal Index 7 | . . . 1 . . . . 1 . . . . 1 . . . . 1 . . . . . . . . . . 1 . . . 1 1 . . Fabricator Index 3 | . . . . . . . . . . . . . 1 . . . . 1 . . . . . . . . . . 1 . . . . . . . Repair Station Index 2 | . . . . . . . . . . . . . 1 . . . . . . . . . . . . . . . 1 . . . . . . . Alert Level 4 | . . . . . . . . . . . . . 1 1 . . . . . . . . . . . . . . . . . 1 1 . . . Unreport Threat 14 | . . . . . . . . . . . . . 2 3 . . . 2 . . . . 1 . . . . . . . . 2 2 2 . . Locate Traps 12 | . 1 . . . . . 3 . . . . . 2 1 . . . 2 . . . . 2 . . . . 1 . . . . . . . . Reprogram Traps 1 | . . . . . . . . . . . . . . . . . . 1 . . . . . . . . . . . . . . . . . . Recall Investigation 4 | . . . . . . . . 1 . . . . 1 1 . . . . . . . . . . . . . . 1 . . . . . . . Recall Extermination 1 | . . . . . . . . . . . . . 1 . . . . . . . . . . . . . . . . . . . . . . . Recall Reinforcements 1 | . . . . . . . . . . . . . 1 . . . . . . . . . . . . . . . . . . . . . . . Hauler Manifests 9 | . 1 . 1 . . . 1 1 . . . . 1 1 . . . 1 . . . . 1 . . . . . . . . . 1 . . . Registered Components 2 | . 1 . . . . . . 1 . . . . . . . . . . . . . . . . . . . . . . . . . . . . Zone Layout 5 | . . . . . . . . . . . . . 1 1 . . . 2 . . . . 1 . . . . . . . . . . . . . Fabricator Hacks 20 | . . . . . . . . 1 . . . . 2 . . . . 6 . . . . 4 . . . . . 7 . . . . . . . Load Schematic 11 | . . . . . . . . 1 . . . . 1 . . . . 3 . . . . 2 . . . . . 4 . . . . . . . Build 9 | . . . . . . . . . . . . . 1 . . . . 3 . . . . 2 . . . . . 3 . . . . . . . Repair Station Hacks 21 | . . . . . . . . . . . . . 5 4 . . . 6 . . . . . . . . . . . . . 6 . . . . Scan Component 11 | . . . . . . . . . . . . . 3 2 . . . 3 . . . . . . . . . . . . . 3 . . . . Repair 10 | . . . . . . . . . . . . . 2 2 . . . 3 . . . . . . . . . . . . . 3 . . . . Recycling Unit Hacks 6 | . . . . . . . . . . . . . 3 . . . . 2 . . . . 1 . . . . . . . . . . . . . Report Inventory 5 | . . . . . . . . . . . . . 3 . . . . 1 . . . . 1 . . . . . . . . . . . . . Retrieve Components 1 | . . . . . . . . . . . . . . . . . . 1 . . . . . . . . . . . . . . . . . . Scanalyzer 14 | . . . . . . . 4 . . . . . 8 . . . . . . . . . . . . . . . . . . 2 . . . . Insert Component 6 | . . . . . . . 2 . . . . . 3 . . . . . . . . . . . . . . . . . . 1 . . . . Analyze 8 | . . . . . . . 2 . . . . . 5 . . . . . . . . . . . . . . . . . . 1 . . . . Garrison Access Hacks 8 | . . . . . . . . 1 . . . . 3 . . . . 2 . . . . . . . . . 1 . . . 1 . . . . Seal Access 8 | . . . . . . . . 1 . . . . 3 . . . . 2 . . . . . . . . . 1 . . . 1 . . . . Unauthorized Hacks 271 | . 20 . 11 . . . 11 22 . . . . 20 46 8 . 1 21 . . . . 14 . . . . 5 21 . . 21 37 9 4 . Terminals 104 | . 8 . 5 . . . 4 7 . . . . 9 20 4 . . 6 . . . . 2 . . . . 2 9 . . 8 15 4 1 . Track 45 | . 3 . 2 . . . 1 3 . . . . 3 10 2 . . 2 . . . . 1 . . . . 1 3 . . 5 6 2 1 . Assimilate 7 | . 1 . . . . . . 1 . . . . 2 . . . . 1 . . . . . . . . . . 1 . . 1 . . . . Botnet 35 | . 3 . 2 . . . 2 2 . . . . 3 7 1 . . 3 . . . . 1 . . . . 1 3 . . 1 4 2 . . Detonate 1 | . . . . . . . . . . . . . . . . . . . . . . . . . . . . . . . . 1 . . . . Disrupt 8 | . . . . . . . . . . . . . . 2 1 . . . . . . . . . . . . . 1 . . . 4 . . . Operators 8 | . 1 . 1 . . . 1 1 . . . . 1 1 . . . . . . . . . . . . . . 1 . . . 1 . . . Fabricators 5 | . . . . . . . . . . . . . . . . . . 1 . . . . 4 . . . . . . . . . . . . . Report 1 | . . . . . . . . . . . . . . . . . . . . . . . 1 . . . . . . . . . . . . . Prioritize 1 | . . . . . . . . . . . . . . . . . . . . . . . 1 . . . . . . . . . . . . . Siphon 2 | . . . . . . . . . . . . . . . . . . 1 . . . . 1 . . . . . . . . . . . . . Haulers 1 | . . . . . . . . . . . . . . . . . . . . . . . 1 . . . . . . . . . . . . . Repair Stations . | . . . . . . . . . . . . . . . . . . . . . . . . . . . . . . . . . . . . . Recycling Units 2 | . 1 . . . . . . 1 . . . . . . . . . . . . . . . . . . . . . . . . . . . . Tunnel 2 | . 1 . . . . . . 1 . . . . . . . . . . . . . . . . . . . . . . . . . . . . Scanalyzers . | . . . . . . . . . . . . . . . . . . . . . . . . . . . . . . . . . . . . . Garrison Access . | . . . . . . . . . . . . . . . . . . . . . . . . . . . . . . . . . . . . . Data Cores Recovered 3 | . . . . . . . . 1 . . . . . . . . . . . . . . . . . . . 1 1 . . . . . . . Used 1 | . . . . . . . . . . . . . . . . . . . . . . . . . . . . 1 . . . . . . . . Hacking Detections 114 | . 7 . 2 . . . 6 17 . . . 1 17 14 3 . 1 10 . . . . 6 . . . . 4 8 . . 7 6 4 1 . Full Trace Events 9 | . . . . . . . 1 2 . . . . 2 . . . 1 . . . . . 1 . . . . 1 1 . . . . . . . Feedback Events 1 | . . . . . . . . . . . . . . . . . 1 . . . . . . . . . . . . . . . . . . . Corruption 1 | . . . . . . . . . . . . . . . . . 1 . . . . . . . . . . . . . . . . . . . Feedback Blocked . | . . . . . . . . . . . . . . . . . . . . . . . . . . . . . . . . . . . . . Robot Schematics Acquired 6 | . . . . . . . . . . . 6 . . . . . . . . . . . . . . . . . . . . . . . . . Robots Built . | . . . . . . . . . . . . . . . . . . . . . . . . . . . . . . . . . . . . . Matter . | . . . . . . . . . . . . . . . . . . . . . . . . . . . . . . . . . . . . . Time . | . . . . . . . . . . . . . . . . . . . . . . . . . . . . . . . . . . . . . Total Robot Build Rating . | . . . . . . . . . . . . . . . . . . . . . . . . . . . . . . . . . . . . . Part Schematics Acquired 33 | . 1 . . . . . 3 2 . . 8 . 4 3 . . . 7 . . . . . . . 4 . . . . . 1 . . . . Parts Built 9 | . . . . . . . . . . . . . 1 . . . . 3 . . . . 2 . . . . . 3 . . . . . . . Matter 2298 | . . . . . . . . . . . . . 285 . . . . 711 . . . . 447 . . . . . 855 . . . . . . . Time 588 | . . . . . . . . . . . . . 50 . . . . 202 . . . . 134 . . . . . 202 . . . . . . . Total Part Build Rating 47 | . . . . . . . . . . . . . 5 . . . . 15 . . . . 12 . . . . . 15 . . . . . . . Parts Repaired 10 | . . . . . . . . . . . . . 2 2 . . . 3 . . . . . . . . . . . . . 3 . . . . Time 480 | . . . . . . . . . . . . . 88 50 . . . 174 . . . . . . . . . . . . . 168 . . . . Parts Recycled . | . . . . . . . . . . . . . . . . . . . . . . . . . . . . . . . . . . . . . Recycled Matter . | . . . . . . . . . . . . . . . . . . . . . . . . . . . . . . . . . . . . . Retrieved Matter . | . . . . . . . . . . . . . . . . . . . . . . . . . . . . . . . . . . . . . Retrieved Components 3 | . . . . . . . . . . . . . . . . . . 3 . . . . . . . . . . . . . . . . . . Parts Scanalyzed 6 | . . . . . . . 2 . . . . . 3 . . . . . . . . . . . . . . . . . . 1 . . . . Part Schematics Acquired 6 | . . . . . . . 2 . . . . . 3 . . . . . . . . . . . . . . . . . . 1 . . . . Parts Damaged 1 | . . . . . . . 1 . . . . . . . . . . . . . . . . . . . . . . . . . . . . . Bothacking | -11 -10 -10 -9 -9 -9 -8 -8 -7 -7 -7 -7 -6 -6 -6 -6 -6 -6 -5 -5 -5 -5 -4 -4 -4 -4 -4 -3 -3 -3 -3 -2 -2 -2 -1 -1 -1 ------------ Run | Scr Mat Min Mat Min Exi Min Mat Fac Low Low Dat Pro Fac Ext Cet Arc Hub Fac Upp Upp War Pro Fac Upp Upp Zhi Pro Res Arm Lab Res Tes Sec Acc Com Ac0 Used RIF Installer . | . . . . . . . . . . . . . . . . . . . . . . . . . . . . . . . . . . . . . Robots Hacked 28 | . . . . . . . . 2 . . 1 1 3 1 . . . 2 . . 1 . 1 . . 3 . . . . 5 3 2 1 1 1 Non-combat 11 | . . . . . . . . 2 . . . . 3 . . . . 2 . . . . 1 . . . . . . . 2 . 1 . . . Combat 17 | . . . . . . . . . . . 1 1 . 1 . . . . . . 1 . . . . 3 . . . . 3 3 1 1 1 1 Robot Hacks Applied 28 | . . . . . . . . 2 . . 1 1 3 1 . . . 2 . . 1 . 1 . . 3 . . . . 5 3 2 1 1 1 parse_system 20 | . . . . . . . . . . . 1 1 . 1 . . . . . . 1 . . . . 3 . . . . 5 3 2 1 1 1 find_chute 8 | . . . . . . . . 2 . . . . 3 . . . . 2 . . . . 1 . . . . . . . . . . . . . Relay Couplers Released 7 | . . . . . . . . . . . . . . . . . . . . . . . . . . . . 6 . . 1 . . . . . Machine Destruction 1 | . . . . . . . . . . . . . . . . . . . . . . . . . . . . . . . 1 . . . . . Programmers 6 | . . . . . . . . . . . . . . . . . . . . . . . . . . . . 6 . . . . . . . . Robots Rewired 11 | . . . . . . . . . . . . . 1 3 . . . . . . 5 . 1 . . . . . . . . 1 . . . . Allies Hacked . | . . . . . . . . . . . . . . . . . . . . . . . . . . . . . . . . . . . . . Hacks Repelled . | . . . . . . . . . . . . . . . . . . . . . . . . . . . . . . . . . . . . . Allies | -11 -10 -10 -9 -9 -9 -8 -8 -7 -7 -7 -7 -6 -6 -6 -6 -6 -6 -5 -5 -5 -5 -4 -4 -4 -4 -4 -3 -3 -3 -3 -2 -2 -2 -1 -1 -1 -------- Run | Scr Mat Min Mat Min Exi Min Mat Fac Low Low Dat Pro Fac Ext Cet Arc Hub Fac Upp Upp War Pro Fac Upp Upp Zhi Pro Res Arm Lab Res Tes Sec Acc Com Ac0 Total Allies 42 | . 1 3 . . . . . 1 . . . 1 2 15 . . . 4 . . 5 . 1 . . . . . . . . 2 . . . 7 Largest Group 7 | . 1 4 2 . . . . 1 1 1 1 2 2 7 7 2 . 3 . . 5 2 1 1 . . . . . . . 1 . . . 7 Highest-Rated Group 297 | . 10 50 32 . . . . 26 26 26 26 120 64 297 297 39 . 93 . . 275 120 56 56 . . . . . . . 154 . . . 98 Highest-Rated Ally 156 | . 10 16 16 . . . . 26 26 26 26 94 41 156 156 20 . 31 . . 60 60 56 56 . . . . . . . 154 . . . 15 Total Orders 66 | . . . . . . . . 5 4 6 . 4 27 3 . . . 6 . . . 1 . . . . . . . . . 6 . . 2 2 STAY 1 | . . . . . . . . . . . . 1 . . . . . . . . . . . . . . . . . . . . . . . . GOTO 34 | . . . . . . . . 3 2 3 . 1 15 2 . . . 3 . . . 1 . . . . . . . . . 4 . . . . FOLLOW 27 | . . . . . . . . 2 2 3 . 2 12 1 . . . 3 . . . . . . . . . . . . . 2 . . . . EXPLORE 2 | . . . . . . . . . . . . . . . . . . . . . . . . . . . . . . . . . . . . 2 RETURN 2 | . . . . . . . . . . . . . . . . . . . . . . . . . . . . . . . . . . . 2 . Ally Attacks 162 | . . 14 . . . . . . . . . 1 12 28 34 . . 13 . . 1 . 5 3 . . . . . . . 11 . . . 40 Total Damage 3598 | . . 210 . . . . . . . . . 37 315 536 906 . . 211 . . . . 231 159 . . . . . . . 530 . . . 463 Kills 21 | . . 4 . . . . . . . . . . 3 3 5 . . 1 . . . . 2 1 . . . . . . . 2 . . . . Allies Corrupted 3 | . . . . . . . . . . . . . 1 . . . . . . . . 1 . . . . . . . . . 1 . . . . Allies Melted . | . . . . . . . . . . . . . . . . . . . . . . . . . . . . . . . . . . . . . Intel | -11 -10 -10 -9 -9 -9 -8 -8 -7 -7 -7 -7 -6 -6 -6 -6 -6 -6 -5 -5 -5 -5 -4 -4 -4 -4 -4 -3 -3 -3 -3 -2 -2 -2 -1 -1 -1 ------- Run | Scr Mat Min Mat Min Exi Min Mat Fac Low Low Dat Pro Fac Ext Cet Arc Hub Fac Upp Upp War Pro Fac Upp Upp Zhi Pro Res Arm Lab Res Tes Sec Acc Com Ac0 Robot Analysis Total 8 | . 1 . . . . . . . . . . . . . . . . . . . . . . . . 4 . . . . . . . 3 . . Derelict Logs Recovered 11 | . . 1 . 1 . . . . 2 1 . 1 . . . . . . . 3 . 1 . 1 . . . . . . . . . . . . Drone Launches 10 | . . . . . . . . . . . . . . 2 . . . . . . . . . . . . . . . . . . . . 8 . Drone Recoveries 2 | . . . . . . . . . . . . . . . . . . . . . . . . . . . . . . . . . . . 2 . Exploration | -11 -10 -10 -9 -9 -9 -8 -8 -7 -7 -7 -7 -6 -6 -6 -6 -6 -6 -5 -5 -5 -5 -4 -4 -4 -4 -4 -3 -3 -3 -3 -2 -2 -2 -1 -1 -1 ------------- Run | Scr Mat Min Mat Min Exi Min Mat Fac Low Low Dat Pro Fac Ext Cet Arc Hub Fac Upp Upp War Pro Fac Upp Upp Zhi Pro Res Arm Lab Res Tes Sec Acc Com Ac0 Turns Passed 40704 | 69 893 932 708 827 331 388 1265 2776 1429 698 133 782 2862 1077 363 131 263 2395 1261 1261 871 1685 1472 720 483 228 534 883 1271 502 885 1393 1658 461 5356 1458 Spaces Moved 22696 | 39 611 515 363 619 268 292 671 1439 893 443 84 473 1856 622 176 49 143 1554 883 789 576 1036 753 462 308 143 349 469 576 309 483 704 730 270 2320 426 Core 1 | 1 . . . . . . . . . . . . . . . . . . . . . . . . . . . . . . . . . . . . Treads 1691 | . 45 126 16 88 . . 22 212 . . . . . . . . . . . . . . . . . . . . . . . . . . 756 426 Legs . | . . . . . . . . . . . . . . . . . . . . . . . . . . . . . . . . . . . . . Wheels 21004 | 38 566 389 347 531 268 292 649 1227 893 443 84 473 1856 622 176 49 143 1554 883 789 576 1036 753 462 308 143 349 469 576 309 483 704 730 270 1564 . Hover . | . . . . . . . . . . . . . . . . . . . . . . . . . . . . . . . . . . . . . Flight . | . . . . . . . . . . . . . . . . . . . . . . . . . . . . . . . . . . . . . Fastest Speed 50 | 50 80 120 130 110 110 130 125 135 140 140 150 150 125 135 125 135 135 135 135 135 135 145 145 145 145 145 145 145 145 145 130 130 130 136 126 155 Average Speed 140 | 79 110 139 136 126 120 130 132 157 146 148 150 151 132 135 134 135 135 135 135 135 140 145 145 145 145 145 145 152 153 150 137 136 138 136 149 169 Slowest Speed 280 | 80 200 200 220 180 130 130 220 280 150 150 150 155 135 135 135 160 135 135 135 135 145 145 145 155 155 145 145 155 155 155 155 140 190 136 205 175 Overloaded Moves . | . . . . . . . . . . . . . . . . . . . . . . . . . . . . . . . . . . . . . Propulsion Burnouts . | . . . . . . . . . . . . . . . . . . . . . . . . . . . . . . . . . . . . . Robots Hopped . | . . . . . . . . . . . . . . . . . . . . . . . . . . . . . . . . . . . . . Cave-ins Triggered 1 | . . . . . . . . . . . . . . . . . . . . . . . . . . . . . . . . 1 . . . . Teleports 4 | . . . . . . . . . . . . . . . . . . . . . . . . . . . . . 1 . . . 1 . 1 1 Exploration Rate (%) 58 | 4 96 98 33 91 71 62 63 34 90 58 71 67 44 71 76 72 13 36 91 79 81 90 24 65 53 60 67 21 25 98 30 71 46 12 79 33 Regions Visited 36 Branch Regions 26 Pre-discovered Areas 10 | . 1 1 . . 1 . . 1 . 1 1 1 . . . . . . . . . . . . . 3 . . . . . . . . . . Known Exits Taken 28 | . . . 1 . . . . 1 1 1 1 1 1 1 1 1 1 1 1 1 1 1 1 1 1 1 1 1 1 1 1 1 1 1 . . Unknown Exits Taken 8 | 1 1 1 . 1 1 1 1 . . . . . . . . . . . . . . . . . . . . . . . . . . . 1 . Scrap Searched 33 | . . 2 . 1 . . . . 12 3 . 2 . . . . . . 3 2 . 3 . 2 2 . 1 . . . . . . . . . Spaces Dug 310 | . . 13 30 . . . 3 32 15 1 . . 34 3 . . . 23 11 6 2 7 15 4 13 . 8 4 5 . 9 31 13 5 20 3 Terrain Destroyed 1464 | . . 88 77 16 . . 56 83 72 25 . 78 101 14 . 4 167 32 65 19 2 77 51 4 15 . 9 13 11 . 9 43 31 10 22 270 Melee 61 | . . . . . . . 3 31 15 1 . . . . . . . . . . . . . . . . . . . . . 1 . . 10 . Projectile 456 | . . . 3 . . . 5 4 . . . 4 43 14 . . 9 32 13 12 2 17 25 4 15 . 9 5 11 . 9 42 23 10 12 133 AOE 947 | . . 88 74 16 . . 48 48 57 24 . 74 58 . . 4 158 . 52 7 . 60 26 . . . . 8 . . . . 8 . . 137 Actions | -11 -10 -10 -9 -9 -9 -8 -8 -7 -7 -7 -7 -6 -6 -6 -6 -6 -6 -5 -5 -5 -5 -4 -4 -4 -4 -4 -3 -3 -3 -3 -2 -2 -2 -1 -1 -1 --------- Run | Scr Mat Min Mat Min Exi Min Mat Fac Low Low Dat Pro Fac Ext Cet Arc Hub Fac Upp Upp War Pro Fac Upp Upp Zhi Pro Res Arm Lab Res Tes Sec Acc Com Ac0 Total 29222 | 59 733 661 500 646 277 299 903 1791 994 469 89 518 2153 803 241 84 182 1791 928 934 635 1156 983 498 327 167 366 568 842 346 655 1008 1162 359 4196 899 Wait 3140 | 1 26 79 54 . . 3 84 95 57 6 . 9 124 94 1 15 12 132 22 95 36 8 73 4 . . 1 30 112 1 98 133 168 18 1484 65 Move 22659 | 38 610 514 362 618 267 291 670 1438 892 442 83 472 1855 621 175 48 142 1553 882 788 575 1035 752 461 307 142 348 468 575 308 482 703 729 269 2319 425 Hop . | . . . . . . . . . . . . . . . . . . . . . . . . . . . . . . . . . . . . . Pick Up 405 | 6 15 4 15 4 3 3 21 46 6 1 1 5 17 8 6 . 1 21 1 5 8 20 18 5 1 3 . 9 21 8 9 12 28 9 35 30 Fast Attach 140 | 6 4 . 1 . . . 3 12 . 2 . . 8 . 3 . . 3 . . 1 . . 2 . 6 1 3 1 5 4 9 10 . 42 14 Attach 156 | . 2 . 1 . . . 7 9 . 1 . 1 4 . . 1 1 5 . 2 . 1 7 1 . 2 . 5 9 3 3 5 16 3 25 42 Detach 45 | . . . . . . . . 1 . . . 1 2 . . . . . . . . . . 1 . 3 . . . 5 1 1 5 1 20 4 Swap 726 | . 6 10 13 13 4 . 26 50 12 10 3 12 47 21 21 7 10 22 7 17 3 28 41 12 3 . 1 15 50 3 16 48 64 9 42 80 Drop 368 | . 10 5 7 4 3 1 18 37 7 1 1 6 19 5 9 . . 15 . 4 2 19 14 6 1 8 1 4 12 10 11 17 20 3 77 11 Fire 1401 | 8 60 49 47 7 . 1 70 44 5 5 1 12 77 28 20 13 16 40 16 23 10 30 78 6 15 3 9 34 62 3 31 79 122 47 102 228 Melee 97 | . . . . . . . 4 55 15 1 . . . . 6 . . . . . . . . . . . . . . . . 1 . . 15 . Ram 1 | . . . . . . . . . . . . . . 1 . . . . . . . . . . . . . . . . . . . . . . Kick . | . . . . . . . . . . . . . . . . . . . . . . . . . . . . . . . . . . . . . Crush . | . . . . . . . . . . . . . . . . . . . . . . . . . . . . . . . . . . . . . Escape Stasis 60 | . . . . . . . . 4 . . . . . 24 . . . . . . . . . . . . . . . . . . . . 32 . Rewire . | . . . . . . . . . . . . . . . . . . . . . . . . . . . . . . . . . . . . . Trap 20 | . . . . . . . . . . . . . . . . . . . . . . 15 . . . . 5 . . . . . . . . . Miscellaneous 4 | . . . . . . . . . . . . . . 1 . . . . . . . . . . . . . . . . . . . . 3 . Route ------- -11/Scrapyard -10/Materials (discovered 4 exits: *Mat x3 / [*Min]) -10/Mines (discovered 2 exits: *Mat x2) -9/Materials -9/Mines (discovered 2 exits: *Mat / *Exi) -9/Exiles -8/Mines (discovered 2 exits: *Mat x2) -8/Materials (discovered 3 exits: *Fac x2 / [*Sto]) -7/Factory (discovered 2 exits: *Low x2) -7/Lower Caves -7/Lower Caves -7/Data Miner -6/Proximity Caves -6/Factory (discovered 6 exits: *Fac x2 / *Low x2 / *Ext x2) -6/Extension (discovered 2 exits: *Fac / *Cet) -6/Cetus (discovered 2 exits: *Fac / *Arc) -6/Archives -6/Hub_04(d) -5/Factory -5/Upper Caves -5/Upper Caves (discovered 2 exits: Fac / *War) -5/Warlord -4/Proximity Caves -4/Factory (discovered 2 exits: *Upp x2) -4/Upper Caves -4/Upper Caves (discovered 2 exits: *Res / *Zhi) -4/Zhirov -3/Proximity Caves -3/Research (discovered 3 exits: *Arm / *Qua x2) -3/Armory -3/Lab -2/Research -2/Testing (discovered 2 exits: *Acc / *Sec) -2/Section 7 -1/Access -1/Command (discovered 3 exits: [*Sur x2] / [*Ac0]) -1/Access_0 To Fleet Rendezvous History --------- Turn | Location | Event 17 | -11/Scrapyard | Discovered new exit (range 15) 70 | -11/Scrapyard | Entered Materials 249 | -10/Materials | Discovered new exit (range 15) 302 | -10/Materials | Build established: Mutant 673 | -10/Materials | Discovered new exit (range 15) 771 | -10/Materials | Discovered new exit (range 15) 902 | -10/Materials | Discovered new exit (range 12) 963 | -10/Materials | Entered Mines 963 | -10/Mines | Accompanied by 1 ally 963 | -10/Mines | A weapon hastily lodged in a ceiling crevice suddenly fell to the ground 1029 | -10/Mines | Discovered new exit (range 4) 1123 | -10/Mines | Assisted by bots powering up and referring to "LRC-V3" 1139 | -10/Mines | Discovered new exit (range 3) 1356 | -10/Mines | Excavation squad dispatched 1356 | -10/Mines | A large section of the Mines collapsed 1466 | -10/Mines | Assisted by bots powering up and referring to "LRC-V3" 1606 | -10/Mines | Excavation squad dispatched 1895 | -10/Mines | Entered Materials 1895 | -9/Materials | Accompanied by 2 allies 1895 | -9/Materials | Evolved 2 slots: Utility x2 2176 | -9/Materials | Identified exit to Mines 2603 | -9/Materials | Entered Mines 2782 | -9/Mines | Found a damaged Exp. Sensor Array with a note attached 2787 | -9/Mines | Found Prototype Device 2798 | -9/Mines | Learned Materials non-interactive machine intel 2799 | -9/Mines | Identified Exp. Sensor Array 2858 | -9/Mines | Build established: Hauler-Mutant 2951 | -9/Mines | Discovered new exit (range 6) 3144 | -9/Mines | Received a Rocket Launcher from a helpful Derelict 3310 | -9/Mines | Deemed a non-threat by the Exiles lab entrance 3425 | -9/Mines | Discovered new exit (range 5) 3430 | -9/Mines | Entered Exiles 3457 | -9/Exiles | Met 8R-AWN 3476 | -9/Exiles | Met EX-HEX 3505 | -9/Exiles | Met EX-BIN 3521 | -9/Exiles | Met EX-DEC 3527 | -9/Exiles | Learned location of Zion (-6) 3634 | -9/Exiles | Visited The Gauntlet 3751 | -9/Exiles | Discovered new exit (range 10) 3761 | -9/Exiles | Entered Mines 3959 | -8/Mines | Discovered new exit (range 6) 4014 | -8/Mines | Discovered new exit (range 14) 4149 | -8/Mines | Entered Materials 4149 | -8/Materials | Evolved 2 slots: Utility x2 4150 | -8/Materials | Loaded intel: 36 non-interactive machine locations 4849 | -8/Materials | Discovered new exit (range 6) 5174 | -8/Materials | Discovered new exit (range 4) 5401 | -8/Materials | Discovered new exit (range 8) 5414 | -8/Materials | Entered Factory 5414 | -7/Factory | Evolved 2 slots: Utility x2 5442 | -7/Factory | Lost 3 parts (1n2u) 5883 | -7/Factory | Identified exit to Lower Caves 8190 | -7/Factory | Entered Lower Caves 8190 | -7/Lower Caves | Accompanied by 1 ally 8210 | -7/Lower Caves | Learned location of 1 exit from Factory 8568 | -7/Lower Caves | Destroyed 7 combat bots 8719 | -7/Lower Caves | Learned 4 Factory zone layouts 9293 | -7/Lower Caves | Discovered new exit (range 5) 9299 | -7/Lower Caves | Identified exit to Lower Caves 9619 | -7/Lower Caves | Entered another Lower Caves area 9619 | -7/Lower Caves | Accompanied by 1 ally 9643 | -7/Lower Caves | Found Alien Artifact 9643 | -7/Lower Caves | Identified Core Expander 9643 | -7/Lower Caves | Installed Core Expander, added new Weapon slot 10249 | -7/Lower Caves | Discovered new exit (range 12) 10315 | -7/Lower Caves | Identified exit to Data Miner 10317 | -7/Lower Caves | Entered Data Miner 10317 | -7/Data Miner | Accompanied by 1 ally 10317 | -7/Data Miner | Discovered new exit (range 6) 10323 | -7/Data Miner | Identified exit to Proximity Caves 10346 | -7/Data Miner | Met Data Miner 10383 | -7/Data Miner | Learned location of Section 7 (-2) 10383 | -7/Data Miner | Acquired the access code to Warlord's prototype stash 10409 | -7/Data Miner | Received God Mode back door access code from Data Miner 10450 | -7/Data Miner | Entered Proximity Caves 10450 | -6/Proximity Caves | Accompanied by 1 ally 10468 | -6/Proximity Caves | Escorted by Enhanced Grunt 10469 | -6/Proximity Caves | Attracted the attention of an 0b10 checkpoint 11067 | -6/Proximity Caves | Found Exp. Thermal Shield 11189 | -6/Proximity Caves | Discovered new exit (range 13) 11231 | -6/Proximity Caves | Identified exit to Factory 11232 | -6/Proximity Caves | Entered Factory 11232 | -6/Factory | Accompanied by 1 ally 11232 | -6/Factory | Evolved 2 slots: Propulsion x1, Utility x1 11233 | -6/Factory | Identified exit to Extension 11238 | -6/Factory | Destroyed 10 combat bots 11339 | -6/Factory | Repaired Arm. Huge Wheel? 11389 | -6/Factory | Repaired Arm. Huge Wheel? 11781 | -6/Factory | Discovered exit to Extension (range 14) 12155 | -6/Factory | Incoming investigation squad redirected 12588 | -6/Factory | Discovered new exit (range 11) 12869 | -6/Factory | Incoming investigation squad redirected 12931 | -6/Factory | Discovered new exit (range 4) 12934 | -6/Factory | Identified exit to Factory 13040 | -6/Factory | Discovered new exit (range 15) 13265 | -6/Factory | Identified exit to Lower Caves 13458 | -6/Factory | Fabricated Exp. Signal Interpreter (x1) 13538 | -6/Factory | Discovered exit to Factory (range 13) 13543 | -6/Factory | Central database locked down 14094 | -6/Factory | Entered Extension 14094 | -6/Extension | Accompanied by 1 ally 14404 | -6/Extension | Rescued a captive Derelict 14405 | -6/Extension | Rescued a captive Derelict 14644 | -6/Extension | Rescued a captive Derelict 14645 | -6/Extension | Rescued a captive Derelict 14727 | -6/Extension | Incoming investigation squad redirected 14796 | -6/Extension | Repaired Hvy. Plasma Cannon 14822 | -6/Extension | Repaired Phase Cannon 14887 | -6/Extension | Rescued a captive Derelict 14900 | -6/Extension | Rescued a captive Derelict 14926 | -6/Extension | Rescued A7 14981 | -6/Extension | Rescued a captive Derelict 14990 | -6/Extension | Rescued a captive Derelict 14991 | -6/Extension | Rescued a captive Derelict 15022 | -6/Extension | Rescued a captive Derelict 15085 | -6/Extension | Rescued a captive Derelict 15141 | -6/Extension | Discovered exit to Factory (range 10) 15142 | -6/Extension | Discovered new exit (range 6) 15165 | -6/Extension | Identified exit to Cetus 15171 | -6/Extension | Entered Cetus 15171 | -6/Cetus | Accompanied by 9 allies 15176 | -6/Cetus | Acquired a Cetus Manufacturing Module code from A7 15194 | -6/Cetus | Spotted Cetus Guard 15194 | -6/Cetus | Spotted Cetus Guard 15197 | -6/Cetus | Destroyed Cetus Guard 15197 | -6/Cetus | Spotted Cetus Guard 15198 | -6/Cetus | Destroyed Cetus Guard 15200 | -6/Cetus | Spotted Cetus Guard 15206 | -6/Cetus | Destroyed Cetus Guard 15213 | -6/Cetus | Allies destroyed Cetus Guard 15334 | -6/Cetus | Escorted A7 to Cetus Mainframe 15349 | -6/Cetus | Discovered new exit (range 15) 15380 | -6/Cetus | Spotted Cetus Guard 15381 | -6/Cetus | Spotted Cetus Guard 15387 | -6/Cetus | Destroyed Cetus Guard 15387 | -6/Cetus | Spotted Cetus Guard 15391 | -6/Cetus | Spotted Cetus Guard 15393 | -6/Cetus | Destroyed Cetus Guard 15393 | -6/Cetus | Destroyed Cetus Guard 15396 | -6/Cetus | Destroyed Cetus Guard 15404 | -6/Cetus | Discovered exit to Factory (range 16) 15412 | -6/Cetus | Met Revision 17 15517 | -6/Cetus | Destroyed A7 15521 | -6/Cetus | Extracted ID and sensor layout for unrecognized location from A7's data core 15522 | -6/Cetus | Identified exit to Archives 15530 | -6/Cetus | Found Med. Regenerative Plating 15534 | -6/Cetus | Entered Archives 15534 | -6/Archives | Accompanied by 2 allies 15645 | -6/Archives | Discovered new exit (range 15) 15664 | -6/Archives | Identified exit to Hub_04(d) 15665 | -6/Archives | Entered Hub_04(d) 15679 | -6/Hub_04(d) | Discovered exit to Factory (range 6) 15855 | -6/Hub_04(d) | Incoming investigation squad redirected 15926 | -6/Hub_04(d) | Network Hub disabled 15928 | -6/Hub_04(d) | Entered Factory 15928 | -5/Factory | Evolved 2 slots: Utility x2 15964 | -5/Factory | Allied Derelicts emerged from ambush trap array 16055 | -5/Factory | Discovered new exit (range 8) 16065 | -5/Factory | Identified exit to Upper Caves 16198 | -5/Factory | Repaired Hvy. Plasma Cannon? 16259 | -5/Factory | Repaired Phase Cannon 16333 | -5/Factory | Repaired Quantum Reactor 17211 | -5/Factory | Fabricated Exp. Sensor Array (x1) 17312 | -5/Factory | Found Imp. Powered Armor 17422 | -5/Factory | Fabricated Exp. Terrain Scan Processor (x1) 17499 | -5/Factory | Fabricated Exp. Terrain Scanner? 18323 | -5/Factory | Entered Upper Caves 19499 | -5/Upper Caves | Discovered new exit (range 8) 19539 | -5/Upper Caves | Identified exit to Upper Caves 19584 | -5/Upper Caves | Entered another Upper Caves area 19677 | -5/Upper Caves | Build established: Hauler-Skirmisher 19687 | -5/Upper Caves | Learned Factory garrison access intel 19796 | -5/Upper Caves | Identified exit to Factory 19796 | -5/Upper Caves | Learned Research security intel 19938 | -5/Upper Caves | Learned 12 Factory zone layouts 20004 | -5/Upper Caves | Encountered a Warlord checkpoint 20014 | -5/Upper Caves | Build established: Hauler-Mutant 20046 | -5/Upper Caves | Learned Factory stockpile data 20313 | -5/Upper Caves | Discovered new exit (range 4) 20315 | -5/Upper Caves | Identified exit to Warlord 20845 | -5/Upper Caves | Entered Warlord 20893 | -5/Warlord | System corruption cleaned by Quarantine Array 21068 | -5/Warlord | Learned Testing emergency access door positions 21070 | -5/Warlord | Learned 4 Research zone layouts 21070 | -5/Warlord | Learned 4 Research zone layouts 21071 | -5/Warlord | Learned Factory terminal intel 21071 | -5/Warlord | Learned Factory scanalyzer intel 21071 | -5/Warlord | Learned Research garrison access intel 21180 | -5/Warlord | Received a Watcher feed algorithm from an ecstatic Tinkerer 21216 | -5/Warlord | Warlord's base attacked by MAIN.C 21238 | -5/Warlord | Found Prototype Energy Gun 21238 | -5/Warlord | Identified Vortex Shotgun 21242 | -5/Warlord | Found Vortex Shotgun 21248 | -5/Warlord | Found Prototype Piercing Weapon 21250 | -5/Warlord | Found Prototype Piercing Weapon 21325 | -5/Warlord | Met Warlord 21344 | -5/Warlord | Opened Warlord's prototype stash 21348 | -5/Warlord | Found Prototype Reactor 21355 | -5/Warlord | Found Ghost Barrier 21566 | -5/Warlord | Warlord forces counterattacked 21677 | -5/Warlord | Discovered new exit (range 8) 21686 | -5/Warlord | Identified exit to Proximity Caves 21716 | -5/Warlord | Entered Proximity Caves 21716 | -4/Proximity Caves | Accompanied by 3 allies 22897 | -4/Proximity Caves | Build established: Hauler-Skirmisher 23368 | -4/Proximity Caves | Learned 4 Research zone layouts 23401 | -4/Proximity Caves | Entered Factory 23401 | -4/Factory | Evolved 2 slots: Utility x2 23404 | -4/Factory | Loaded intel: 20 terminal locations 23405 | -4/Factory | Loaded intel: 4 scanalyzer locations 23406 | -4/Factory | Loaded intel: 4 garrison access locations 23527 | -4/Factory | Identified exit to Upper Caves 23551 | -4/Factory | Fabricated Adv. Transmission Jammer? 23607 | -4/Factory | Fabricated Exp. Utility Shielding (x1) 23905 | -4/Factory | Local fabrication network quarantined 24171 | -4/Factory | Build established: Hauler-Tank 24662 | -4/Factory | Lost 3 parts (1n2u) 24873 | -4/Factory | Entered Upper Caves 24873 | -4/Upper Caves | Accompanied by 1 ally 24897 | -4/Upper Caves | Found Alien Artifact 24920 | -4/Upper Caves | Build established: Hauler-Mutant 25216 | -4/Upper Caves | Learned 4 Research zone layouts 25352 | -4/Upper Caves | Build established: Hauler-Skirmisher 25504 | -4/Upper Caves | Discovered new exit (range 13) 25589 | -4/Upper Caves | Identified exit to Upper Caves 25593 | -4/Upper Caves | Entered another Upper Caves area 25607 | -4/Upper Caves | Discovered new exit (range 10) 25892 | -4/Upper Caves | Build established: Hauler-Mutant 25892 | -4/Upper Caves | Discovered new exit (range 24) 26007 | -4/Upper Caves | Encountered a Warlord checkpoint 26052 | -4/Upper Caves | Identified exit to Zhirov 26076 | -4/Upper Caves | Entered Zhirov 26078 | -4/Zhirov | Discovered new exit (range 3) 26081 | -4/Zhirov | Identified exit to Proximity Caves 26104 | -4/Zhirov | Met Zhirov 26136 | -4/Zhirov | Learned location of Quarantine (-3) 26136 | -4/Zhirov | Learned location of Testing (-2) 26136 | -4/Zhirov | Learned location of Command (-1) 26149 | -4/Zhirov | Zhirov requested help retrieving the SGEMP Prototype 26180 | -4/Zhirov | Found Alien Artifact 26180 | -4/Zhirov | Identified Integrated Dissipator 26180 | -4/Zhirov | Installed Integrated Dissipator, increased core heat dissipation (+2%) 26234 | -4/Zhirov | Found Alien Artifact 26304 | -4/Zhirov | Entered Proximity Caves 26811 | -3/Proximity Caves | Discovered new exit (range 16) 26836 | -3/Proximity Caves | Identified exit to Research 26838 | -3/Proximity Caves | Entered Research 26838 | -3/Research | Evolved 2 slots: Power x1, Utility x1 26841 | -3/Research | Loaded intel: 3 garrison access locations 27038 | -3/Research | Revision forces began assault on 0b10 27077 | -3/Research | Met up with Revision 17++ 27214 | -3/Research | Identified exit to Armory 27214 | -3/Research | Identified exit to Quarantine 27538 | -3/Research | Research terminal network offline 27549 | -3/Research | Spotted B-86 Titan 27721 | -3/Research | Entered Armory 27825 | -3/Armory | Incoming investigation squad redirected 28205 | -3/Armory | Lost 3 parts (1p1u1w) 28212 | -3/Armory | Destroyed 8 combat bots 28384 | -3/Armory | Fabricated Exp. Signal Interpreter (x1) 28388 | -3/Armory | Found Quantum Capacitor 28398 | -3/Armory | Identified Transdimensional Reconstructor 28398 | -3/Armory | Warped through subspace to slip node 28398 | -3/Armory | Discovered new exit (range 1) 28400 | -3/Armory | Identified exit to Lab 28450 | -3/Armory | Identified Vortex Chain Reactor 28450 | -3/Armory | Central database locked down 28608 | -3/Armory | Lost 3 parts (3w) 28615 | -3/Armory | Fabricated Exp. Utility Shielding? 28651 | -3/Armory | Identified Vortex Lance 28727 | -3/Armory | Fabricated Exp. Targeting Computer? 28992 | -3/Armory | Entered Lab 28995 | -3/Lab | Discovered new exit (range 9) 29005 | -3/Lab | Identified exit to Research 29011 | -3/Lab | Hidden lab's door opened automatically 29011 | -3/Lab | Sensor layout match revealed 29012 | -3/Lab | Gained access to the hidden lab's interior 29012 | -3/Lab | Unable to decrypt terminal 29012 | -3/Lab | Opened the door to a hidden lab 29034 | -3/Lab | Found Alien Artifact 29132 | -3/Lab | Found Quantum Router 29181 | -3/Lab | Identified Core Reset Matrix 29181 | -3/Lab | Identified Dimensional Node Initializer 29181 | -3/Lab | Used Core Reset Matrix 29182 | -3/Lab | Unable to decrypt terminal 29182 | -3/Lab | Unable to decrypt terminal 29185 | -3/Lab | Sensed 3 artifacts in vicinity 29197 | -3/Lab | Found Prototype Energy Gun 29197 | -3/Lab | Identified Tachyon Dispersion Ray 29201 | -3/Lab | Found Prototype Energy Cannon 29201 | -3/Lab | Identified Potential Cannon 29206 | -3/Lab | Found Prototype Protection 29206 | -3/Lab | Identified Exp. Powered Armor 29239 | -3/Lab | Found Integrated Reactor 29239 | -3/Lab | Installed Integrated Reactor, increased core energy generation (+2%) 29247 | -3/Lab | Found Transdimensional Reconstructor 29263 | -3/Lab | Found Core Regenerator 29304 | -3/Lab | Unable to decrypt terminal 29386 | -3/Lab | Found Prototype Special Weapon 29468 | -3/Lab | Discovered exit to Research (range 7) 29474 | -3/Lab | Unable to decrypt terminal 29494 | -3/Lab | Entered Research 29494 | -2/Research | Warlord forces began assault on 0b10 29494 | -2/Research | Evolved 2 slots: Propulsion x1, Utility x1 29525 | -2/Research | Met up with Warlord 29553 | -2/Research | Build established: Hauler-Skirmisher 29560 | -2/Research | Identified Gui. Remote Datajack 29604 | -2/Research | Research machine network offline 29633 | -2/Research | Borebot progress halted 29634 | -2/Research | Borebot progress halted 29645 | -2/Research | Borebot progress halted 29745 | -2/Research | Borebot progress halted 29999 | -2/Research | Spotted Striker 30003 | -2/Research | Borebot progress halted 30059 | -2/Research | Borebot progress halted 30211 | -2/Research | Spotted Striker 30218 | -2/Research | Destroyed Striker 30301 | -2/Research | Build established: Hauler-Mutant 30351 | -2/Research | Discovered new exit (range 10) 30373 | -2/Research | Identified exit to Testing 30379 | -2/Research | Entered Testing 30386 | -2/Testing | Spotted PH-EL5ECLWPOR 30387 | -2/Testing | Rewired PH-EL5ECLWPOR 30490 | -2/Testing | Found Prototype Energy Cannon 30490 | -2/Testing | Identified Disintegrator 30670 | -2/Testing | Repaired Lyr. Heavy Armor Plating? 30682 | -2/Testing | Found Zero-point Reactor 30698 | -2/Testing | Found Exp. Phase Shifter 30790 | -2/Testing | Repaired Exp. Utility Shielding 30822 | -2/Testing | Repaired Arm. Wheel 31127 | -2/Testing | Crushed by falling debris 31127 | -2/Testing | System corruption reached 10% 31206 | -2/Testing | Found Prototype Protection 31208 | -2/Testing | Found Prototype Protection 31208 | -2/Testing | Identified Hvy. Regenerative Plating 31228 | -2/Testing | Scanned by Researcher 31271 | -2/Testing | Discovered new exit (range 20) 31441 | -2/Testing | Found Prototype Device 31441 | -2/Testing | Identified Exp. Hardlight Generator 31673 | -2/Testing | Spotted Fortress 31767 | -2/Testing | Discovered new exit (range 5) 31771 | -2/Testing | Identified exit to Section 7 31772 | -2/Testing | Entered Section 7 31773 | -2/Section 7 | Sensed 21 artifacts in vicinity 31813 | -2/Section 7 | Found Integrity Redistributor 31841 | -2/Section 7 | Found Prototype Device 31856 | -2/Section 7 | Identified Exp. Thermal Defense Suite 31914 | -2/Section 7 | Found Prototype Processor 31928 | -2/Section 7 | Found Integrated Dissipator 31928 | -2/Section 7 | Installed Integrated Dissipator, increased core heat dissipation (+2%) 31985 | -2/Section 7 | Found Zero-point Reactor 31989 | -2/Section 7 | Found Zero-point Reactor 32158 | -2/Section 7 | Identified exit to Access 32175 | -2/Section 7 | Initialized slip node 32254 | -2/Section 7 | Spotted S7 Guard 32268 | -2/Section 7 | Destroyed S7 Guard 32279 | -2/Section 7 | Found Integrated Singularity Reactor 32279 | -2/Section 7 | Installed Integrated Singularity Reactor, increased core energy generation (+2%) 32294 | -2/Section 7 | Spotted S7 Guard 32301 | -2/Section 7 | Found Core Membrane 32319 | -2/Section 7 | Destroyed S7 Guard 32360 | -2/Section 7 | Used Integrity Redistributor, redistributed integrity from core (-181) 32362 | -2/Section 7 | Installed Core Membrane, gained immunity to corruption 32395 | -2/Section 7 | Found Prototype Device 32558 | -2/Section 7 | Found Integrity Redistributor 32669 | -2/Section 7 | Identified Exp. Core Analyzer 32683 | -2/Section 7 | Identified Exp. Actuator Array 32748 | -2/Section 7 | Spotted Executioner 32751 | -2/Section 7 | Destroyed Executioner 32753 | -2/Section 7 | Spotted Executioner 32754 | -2/Section 7 | Destroyed Executioner 32828 | -2/Section 7 | Found Transdimensional Reconstructor 32858 | -2/Section 7 | Found Matter Drive 32958 | -2/Section 7 | Found Sigix Quantum Sheargun 32962 | -2/Section 7 | Found Sigix Quantum Sheargun 33153 | -2/Section 7 | Scanned by Researcher 33154 | -2/Section 7 | Intercept squad dispatched 33168 | -2/Section 7 | Spotted Tracker 33169 | -2/Section 7 | Spotted Tracker 33203 | -2/Section 7 | Warped through subspace to slip node 33208 | -2/Section 7 | Used Integrity Redistributor, redistributed integrity from core (-162) 33209 | -2/Section 7 | Core integrity fell below 50% 33231 | -2/Section 7 | Lost 6 parts (2n2u2w) 33277 | -2/Section 7 | Found Integrity Redistributor 33326 | -2/Section 7 | Found Integrated Dissipator 33385 | -2/Section 7 | Spotted S7 Guard 33389 | -2/Section 7 | Found Integrated Heat Negator 33428 | -2/Section 7 | Installed Integrated Dissipator, increased core heat dissipation (+2%) 33429 | -2/Section 7 | Installed Integrated Heat Negator, increased core heat dissipation (+2%) 33430 | -2/Section 7 | Entered Access 33430 | -1/Access | Evolved 2 slots: Utility x2 33497 | -1/Access | Identified SHELL Armor 33802 | -1/Access | Build established: Alien-Mutant 33841 | -1/Access | Intercept squad dispatched 33851 | -1/Access | Discovered new exit (range 7) 33856 | -1/Access | Spotted Tracker 33857 | -1/Access | Spotted Tracker 33869 | -1/Access | Destroyed Tracker 33876 | -1/Access | Destroyed Tracker 33880 | -1/Access | Found Exp. Targeting Computer 33889 | -1/Access | Identified exit to Command 33891 | -1/Access | Entered Command 34049 | -1/Command | Spotted Combat Programmer 34150 | -1/Command | Met MAIN.C 34201 | -1/Command | Destroyed MAIN.C Shell 34202 | -1/Command | MAIN.C activated Command garrisons 34215 | -1/Command | 0b10 Conduit disabled 34228 | -1/Command | Spotted M Guard 34229 | -1/Command | Destroyed MAIN.C 34415 | -1/Command | Destroyed all MAIN.C guards 35809 | -1/Command | Discovered new exit (range 28) 36023 | -1/Command | Found Prototype Device 36724 | -1/Command | Discovered new exit (range 27) 36915 | -1/Command | Spotted B-99 Colossus 37881 | -1/Command | Used Integrity Redistributor, redistributed integrity from core (-147) 37882 | -1/Command | Used Core Regenerator, restored core integrity (+400) 38169 | -1/Command | Found Exp. Core Analyzer 38178 | -1/Command | Build established: Alien-Tank 38220 | -1/Command | Found Prototype Device 38221 | -1/Command | Identified Adv. Kinecellerator 38347 | -1/Command | Identified Exp. Transmission Jammer 39017 | -1/Command | Found Prototype Ballistic Gun 39018 | -1/Command | Identified Multirail 39205 | -1/Command | Warped through subspace to slip node 39205 | -1/Command | Discovered new exit (range 5) 39247 | -1/Command | Entered Access_0 39247 | -1/Access_0 | Accompanied by 6 allies 39248 | -1/Access_0 | Sensed 1 artifact in vicinity 39248 | -1/Access_0 | Met Architect 39253 | -1/Access_0 | Architect warped through subspace 39281 | -1/Access_0 | Destroyed A8 39313 | -1/Access_0 | Architect warped through subspace 39365 | -1/Access_0 | Architect warped through subspace 39379 | -1/Access_0 | Subspace Access Node disabled 39443 | -1/Access_0 | Architect warped through subspace 39473 | -1/Access_0 | Lost 4 parts (3u1w) 39497 | -1/Access_0 | Architect warped through subspace 39547 | -1/Access_0 | Architect warped through subspace 39608 | -1/Access_0 | Architect warped through subspace 39680 | -1/Access_0 | Architect warped through subspace 39693 | -1/Access_0 | Found Prototype Device 39699 | -1/Access_0 | A6 warped into view 39738 | -1/Access_0 | Destroyed A6 39780 | -1/Access_0 | Architect warped through subspace 39785 | -1/Access_0 | Found Exp. Phase Shifter 39786 | -1/Access_0 | Lost 4 parts (2p1n1u) 39806 | -1/Access_0 | Found Hpw. Transdimensional Reconstructor 39808 | -1/Access_0 | Identified Desublimator 39841 | -1/Access_0 | Architect warped through subspace 39910 | -1/Access_0 | Architect warped through subspace 39923 | -1/Access_0 | Found Exp. Phase Shifter 39975 | -1/Access_0 | Architect warped through subspace 39987 | -1/Access_0 | Found Prototype Device 39997 | -1/Access_0 | Found Exp. Phase Shifter 40001 | -1/Access_0 | Lost 4 parts (1p1n2u) 40027 | -1/Access_0 | Subspace Access Node disabled 40064 | -1/Access_0 | Architect warped through subspace 40121 | -1/Access_0 | Architect warped through subspace 40144 | -1/Access_0 | Build established: Alien-Gunner 40169 | -1/Access_0 | Identified Exp. Weapon Cycler 40177 | -1/Access_0 | Architect warped through subspace 40226 | -1/Access_0 | Architect warped through subspace 40270 | -1/Access_0 | Architect warped through subspace 40339 | -1/Access_0 | Architect warped through subspace 40373 | -1/Access_0 | Subspace Access Node disabled 40381 | -1/Access_0 | Architect warped through subspace 40441 | -1/Access_0 | Architect warped through subspace 40452 | -1/Access_0 | Lost 5 parts (2u3w) 40469 | -1/Access_0 | Found Exp. Phase Shifter 40481 | -1/Access_0 | Architect warped through subspace 40521 | -1/Access_0 | Core integrity fell below 50% 40584 | -1/Access_0 | Architect warped through subspace 40607 | -1/Access_0 | Architect warped through subspace 40609 | -1/Access_0 | Lost 5 parts (1p2n2u) 40629 | -1/Access_0 | Emitted hypermatrix ping 40634 | -1/Access_0 | Assembled emerged from beneath the floor 40635 | -1/Access_0 | A5 warped into view 40679 | -1/Access_0 | Lost 6 parts (2p1n2u1w) 40694 | -1/Access_0 | Warped through subspace to slip node 40694 | -1/Access_0 | Discovered new exit (range 8) 40705 | *** | Heading to fleet! Last Messages --------------- 40689_ Penetrated by HV Slug. 40689_ HV Slug penetrates Earth. 40689_ HV Slug penetrates Wall. 40689_ Hyp. Linear Accelerator destroyed. 40689_ Exp. Thermal Shield destroyed. 40691_ Penetrated by Quantum Shear. 40691_ Exp. Powered Armor destroyed. 40691_ Penetrated by Quantum Shear. 40692_ Penetrated by HV Slug. 40692_ HV Slug penetrates Wall. 40692_ Penetrated by HV Slug. 40692_ Critical hit. 40692_ HV Slug penetrates Wall. 40692_ SHELL Armor destroyed. 40693_ Penetrated by Quantum Shear. 40693_ Exp. Core Shielding destroyed. 40694_ HV Slug penetrates Earth. 40694_ Penetrated by HV Slug. 40694_ Warped through subspace, drawn to slip node. 40694_ EXIT=FOUND Map ----- +----------------------------------------------------+ | | | | | | | | | | | | | | | | | | | | | | | | | | | | | | | | | ?????????????????????????????????????????????????? | | ?????????????????????????????????????????????????? | | ?????????????????????????????????????????????????? | | ?????????????????????????????????????????????????? | | ?????????????????????????????????????????????????? | | ?????????????????????????????????????????????????? | | ????????????????????????###??????????????????????? | | ???????????????????????## ##?????????????????????? | | ???????????????????????# #?????????????????????? | | ???????????????????????# @ #?????????????????????? | | ??????????????????????## #?????????????????????? | | ??????????????????????# #?????????????????????? | | ??????????????????????# ##?????????????????????? | | ??????????????????????## #?????????????????????? | | ??????????????????????# #?????????????????????? | | ??????????????????????# ##?????????????????????? | | ??????????????????????# < #?????????????????????? | | ??????????????????????# ##?????????????????????? | | ??????????????????????## #??????????????????????? | | ???????????????????????####??????????????????????? | | ?????????????????????????????????????????????????? | | ?????????????????????????????????????????????????? | | ?????????????????????????????????????????????????? | | ?????????????????????????????????????????????????? | | ?????????????????????????????????????????????????? | | ?????????????????????????????????????????????????? | | ?????????????????????????????????????????????????? | | ?????????????????????????????????????????????????? | | ?????????????????????????????????????????????????? | | ?????????????????????????????????????????????????? | | ?????????????????????????????????????????????????? | | ?????????????????????????????????????????????????? | | ?????????????????????????????????????????????????? | | ?????????????????????????????????????????????????? | +----------------------------------------------------+ Best States ------------- Heat Dissipation 152 Coolant Potential 100 Energy Generation 107 Energy Capacity 1500 Matter Stores 300 Matter Capacity 300 Sight Range 22 Robot Scan Range 30 Terrain Scan Range 30 Terrain Scan Density 1010 Jamming Range 16 Cloak Strength 4 Power Amplification 30 Armor Coverage 2600 Resistance: TH 30 Core Shielding 40 Utility Shielding 90 Weapon Shielding 90 Weapon Cycling 30 Phase Shifting 20 Evasion (%) 60 Targeting Accuracy 24 Target Analysis 8 Core Analysis 15 Armor Integrity Analysis 66 Recoil Reduction 4 Particle Charging 30 Offensive Hacking 28 Defensive Hacking 25 Item Schematics ----------------- Arm. Huge Wheel | -2/Testing | Scanalyzed Robot Schematics ------------------ None Fabricated ------------ Exp. Signal Interpreter | x1 | -6/Factory Exp. Sensor Array | x1 | -5/Factory Exp. Terrain Scan Processor | x1 | -5/Factory Exp. Terrain Scanner | x1 | -5/Factory Adv. Transmission Jammer | x1 | -4/Factory Exp. Utility Shielding | x1 | -4/Factory Exp. Signal Interpreter | x1 | -3/Armory Exp. Utility Shielding | x1 | -3/Armory Exp. Targeting Computer | x1 | -3/Armory Alien Tech Used ----------------- Core Expander Integrated Dissipator Transdimensional Reconstructor Core Reset Matrix Integrated Reactor Dimensional Node Initializer Integrated Singularity Reactor Integrity Redistributor Core Membrane Integrated Heat Negator Sigix Quantum Sheargun Core Regenerator High-powered Transdimensional Reconstructor Achievements -------------- None Challenges ------------ None Game ------ Seed ElectronWeightTorch Manual? 0 Play Time 10:53:15 Cumulative 406.4 hours Start 2019.11.13 @ 17:40:18 End 2019.11.21 @ 18:25:08 Sessions 47 Manual Loads 0 Difficulty Rogue Special Mode None Game No. 109 Rogue 109 Adventurer 0 Explorer 0 Win Type 2 Total 30 Types 17/2/5/2/1/1/2 Lore% 94 Gallery% 96 Achievement% 88 Wizard Run 0 Options --------- ASCII 1 Keyboard 1 Movement Vi Keybinds 0 Fullscreen 1 Font 12/Smallcaps Map View 83x54 Tactical HUD 1 Map Filters NONE Filters NONE Steam 0 RUN: 9a356cd0-a536-4411-90d3-9a68f715d24d